Cogmind - Beta 13 @@@ ROGUE MODE // 2024.05.29 @ 19:21:53 Player: Dosh Result: Destroyed by Y-72 Warden with Railgun Performance ------------- Evolutions (9) 4500 Regions Visited (34) 6800 Robots Destroyed (798) 3990 Value Destroyed (37878) 37878 Prototype IDs (94) 1880 Alien Tech Used (6) 1200 Bonus (13210) 13210 TOTAL SCORE: 69458 Bonus ------- Triggered High Security 500 High Alert Combat Kills 11667 Follower Combat Kills 1947 Awakened Behemoth Slayer 1000 Entered Garrisons 200 Network Hubs Disabled 400 Aligned with FarCom 300 Acquired ECA 300 Met Zhirov 300 Met R17 at Cetus 500 Met R17 at Research 2000 Scanned by Researcher 500 Friendly Fire -6404 Cogmind --------- Core Integrity 0/1600 Matter 244/300 Energy 99/100 System Corruption 12% Temperature Cool (0) Movement Core (50) Location -1/Access Parts ------- > --- POWER (2) -------- (None) > --- PROPULSION (6) --- (None) > --- UTILITY (10) ----- (None) > --- WEAPON (7) ------- (None) > --- INVENTORY (5) ---- Structural Scanner Advanced Transmission Jammer Advanced Phase Shifter Peak State ------------ > --- POWER ------------ Quantum Reactor Light Quantum Reactor > --- PROPULSION ------- Biometal Heavy Treads Experimental Biometal Heavy Treads High-density Centrium Heavy Treads > --- UTILITY ---------- Experimental Cooling System Huge Storage Unit Experimental Targeting Computer Core Analyzer Advanced Weapon Cycler Centrium Medium Armor Plating Heavy Regenerative Plating Phase Redirector Long-range Tractor Beam > --- WEAPON ----------- Advanced KE Penetrator Advanced KE Penetrator Advanced KE Penetrator Helical Railgun Multirail Multirail Multirail > --- INVENTORY -------- Light Quantum Reactor Light Quantum Reactor Light Quantum Reactor Centrium Heavy Treads Advanced Matter Compressor Structural Scanner Experimental Sensor Array Advanced Transmission Jammer Advanced Phase Shifter AEGIS Remote Shield Improved Hacking Suite Spacefold Activator KE Penetrator KE Penetrator Advanced Micro-nuke Launcher CR-A16's Behemoth Slayer [Rating: 230] Favorites ----------- Power Quantum Reactor Engine Heavy Deuterium Engine Power Core Reinforced Fission Core Reactor Quantum Reactor Propulsion Light Treads Treads Light Treads Wheel Centrium Wheel Utility Huge Storage Unit Device Experimental Cooling System Storage Huge Storage Unit Processor Core Analyzer Hackware Advanced Hacking Suite Protection Medium Regenerative Plating Artifact Spacefold Activator Weapon Advanced KE Penetrator Energy Gun Beam Rifle Ballistic Gun Advanced KE Penetrator Ballistic Cannon AWS/Autocannon Launcher Missile Launcher Impact Weapon Impact Mace Piercing Weapon CR-A16's Pointy Stick Build | -11 -10 -10 -9 -9 -9 -8 -8 -7 -7 -7 -7 -6 -6 -6 -6 -5 -5 -5 -5 -5 -5 -4 -4 -4 -4 -4 -4 -3 -3 -3 -3 -2 -2 -1 ------- Run | Yrd Mat Min Mat Min Exi Min Mat Fac Was Fac Gar Fac Low Low Zio Pro Fac Ext Cet Arc Hub Fac Was Fac Upp Upp Zhi Pro Res Qua Sec Res Tes Acc Slots Evolved 18 | . . . 2 . . . 2 2 . . . 2 . . . . 2 . . . . 2 . . . . . . 2 . . 2 . 2 Power 1 | . . . . . . . . . . . . . . . . . 1 . . . . . . . . . . . . . . . . . Propulsion 4 | . . . . . . . 1 . . . . 1 . . . . . . . . . . . . . . . . 1 . . 1 . . Utility 8 | . . . 1 . . . 1 1 . . . 1 . . . . . . . . . 1 . . . . . . 1 . . . . 2 Weapon 5 | . . . 1 . . . . 1 . . . . . . . . 1 . . . . 1 . . . . . . . . . 1 . . Parts Attached 558 | 6 14 1 29 7 6 3 30 4 8 14 12 28 3 12 4 2 33 32 19 6 39 5 20 23 8 . 9 6 18 50 13 12 26 56 Power 27 | 1 . . 5 . . 1 2 1 1 . 1 . . 1 . . 2 1 1 . . . 1 1 1 . . . . 2 . . . 5 Engine 12 | 1 . . 5 . . 1 2 1 1 . . . . . . . 1 . . . . . . . . . . . . . . . . . Core 1 | . . . . . . . . . . . . . . . . . 1 . . . . . . . . . . . . . . . . . Reactor 14 | . . . . . . . . . . . 1 . . 1 . . . 1 1 . . . 1 1 1 . . . . 2 . . . 5 Propulsion 76 | 2 2 . 8 1 1 . 7 . . 5 4 6 1 2 . . 3 6 4 . . . 2 3 . . . . 5 3 . 2 3 6 Treads 74 | 2 2 . 8 1 1 . 7 . . 5 3 5 1 2 . . 3 6 4 . . . 2 3 . . . . 5 3 . 2 3 6 Leg . | . . . . . . . . . . . . . . . . . . . . . . . . . . . . . . . . . . . Wheel 2 | . . . . . . . . . . . 1 1 . . . . . . . . . . . . . . . . . . . . . . Hover . | . . . . . . . . . . . . . . . . . . . . . . . . . . . . . . . . . . . Flight . | . . . . . . . . . . . . . . . . . . . . . . . . . . . . . . . . . . . Utility 211 | 1 1 1 7 1 2 1 7 2 5 6 3 9 2 4 3 2 11 15 7 2 18 3 9 9 2 . 3 4 6 28 8 3 5 21 Device 151 | . . 1 3 1 1 1 1 1 2 5 2 6 2 4 2 2 9 11 3 1 12 2 7 5 2 . 2 4 5 25 7 3 4 15 Storage 8 | 1 . . 2 . . . 1 . 1 . . . . . . . 1 1 . . . . . 1 . . . . . . . . . . Processor 8 | . . . . . . . 1 . . . . 1 . . 1 . . . 2 . . . . 1 . . . . . 1 . . . 1 Hackware 3 | . . . . . . . . . . 1 . . . . . . . . . . . 1 . . . . . . 1 . . . . . Protection 36 | . 1 . 2 . 1 . 4 1 2 . 1 2 . . . . 1 3 2 1 6 . 2 2 . . 1 . . 1 . . 1 2 Artifact 5 | . . . . . . . . . . . . . . . . . . . . . . . . . . . . . . 1 1 . . 3 Weapon 244 | 2 11 . 9 5 3 1 14 1 2 3 4 13 . 5 1 . 17 10 7 4 21 2 8 10 5 . 6 2 7 17 5 7 18 24 Energy Gun 6 | 1 5 . . . . . . . . . . . . . . . . . . . . . . . . . . . . . . . . . Energy Cannon . | . . . . . . . . . . . . . . . . . . . . . . . . . . . . . . . . . . . Ballistic Gun 178 | 1 4 . 7 2 3 . 11 1 . 1 4 10 . 2 1 . 13 9 7 4 17 2 7 6 4 . 6 1 5 11 3 5 13 18 Ballistic Cannon 2 | . 1 . . . . . . . 1 . . . . . . . . . . . . . . . . . . . . . . . . . Launcher 18 | . 1 . 2 3 . . . . . . . 2 . 2 . . 1 . . . . . . 1 . . . . . . 1 . . 5 Special Weapon . | . . . . . . . . . . . . . . . . . . . . . . . . . . . . . . . . . . . Impact Weapon 10 | . . . . . . 1 3 . 1 2 . 1 . 1 . . . . . . . . . . . . . . . 1 . . . . Slashing Weapon . | . . . . . . . . . . . . . . . . . . . . . . . . . . . . . . . . . . . Piercing Weapon 30 | . . . . . . . . . . . . . . . . . 3 1 . . 4 . 1 3 1 . . 1 2 5 1 2 5 1 Special Melee Weapon . | . . . . . . . . . . . . . . . . . . . . . . . . . . . . . . . . . . . Unidentified Prototypes 39 | . . 1 1 . . . 1 1 1 2 . . . . 1 . 1 5 3 . . . 1 3 . . 3 . . 9 1 . 4 1 Corrupted Parts 1 | . . . . . . . . . . . . . . . . . . . . . 1 . . . . . . . . . . . . . System Corruption 7 | . . . . . . . . . . . . . . . . . . . . . 7 . . . . . . . . . . . . . Parts Lost 51 | . 2 . 1 . . 1 3 . . . . 6 . . . . 4 2 1 . 4 1 . 1 . . . . . . . 2 . 23 Power 7 | . . . 1 . . . 1 . . . . . . . . . 1 . . . . . . . . . . . . . . . . 4 Propulsion 10 | . 1 . . . . . . . . . . 2 . . . . 1 . . . . . . . . . . . . . . . . 6 Utility 21 | . 1 . . . . 1 2 . . . . 1 . . . . 1 2 1 . 1 . . 1 . . . . . . . . . 10 Weapon 13 | . . . . . . . . . . . . 3 . . . . 1 . . . 3 1 . . . . . . . . . 2 . 3 Highest Loss Streak 4 | . 1 . 1 . . 1 2 . . . . 3 . . . . 1 1 1 . 1 1 . 1 . . . . . . . 1 . 4 To Critical Strikes 2 | . . . . . . . . . . . . . . . . . . . . . . . . . . . . . . . . . . 2 Average Slot Usage (%) 88 | . 91 85 98 100 100 99 97 85 68 75 77 85 86 85 88 93 93 99 90 88 87 87 88 88 88 89 60 89 87 89 84 82 78 71 Engine 3 | . 14 14 10 11 11 11 8 7 6 7 3 . . . . . 4 . . . . . . . . . . . . . . . . . Reactor 4 | . . . . . . . . . . . 3 6 6 5 6 6 5 5 5 5 5 5 6 9 9 10 10 10 9 8 4 4 4 4 Treads 18 | . 26 28 22 22 22 22 27 23 23 22 19 17 20 20 26 26 22 23 13 11 11 10 10 9 10 10 10 10 11 14 14 13 13 11 Device 9 | . . . 10 11 11 10 7 1 3 4 7 6 12 11 6 6 5 10 10 12 15 15 11 10 10 10 9 14 18 16 13 13 13 13 Storage 6 | . 14 14 11 11 11 11 9 7 5 7 7 6 6 6 6 6 5 5 5 5 5 5 5 5 5 5 5 5 4 4 4 4 4 3 Processor 7 | . . . . . . . 9 7 7 7 7 13 6 6 8 13 11 11 11 11 5 5 5 5 10 10 10 10 9 11 14 13 8 8 Protection 6 | . 8 . 10 11 11 11 9 7 6 7 6 5 6 6 6 6 5 4 4 3 6 5 7 10 10 10 10 5 4 4 4 4 4 3 Ballistic Gun 24 | . 14 14 32 30 29 32 26 30 7 . 9 25 26 25 23 26 28 28 29 29 27 29 30 30 30 31 3 30 27 27 27 29 29 23 Ballistic Cannon 1 | . 2 14 . . . . . . 6 7 4 . . . . . . . . . . . . . . . . . . . . . . . Naked Turns 4 | . . . . . . . . . . . . . . . . . . . . . . . . . . . . . . . . . . 4 Heaviest Build 203 | 12 17 15 100 66 66 66 118 124 181 181 180 135 136 137 136 135 162 160 161 161 171 178 196 191 163 163 158 169 172 184 173 179 192 203 Greatest Support 255 | 40 40 40 40 40 40 40 63 63 63 66 92 118 126 126 96 96 111 117 160 160 160 160 160 160 160 160 160 160 195 215 215 255 250 250 Greatest Overweight (x) 11 | . . . 2 1 1 1 1 1 2 2 11 1 1 1 1 1 1 1 1 1 1 1 2 1 1 1 . 1 1 1 . . . . Average Overweight (x) . | . . . 1 1 1 1 1 1 1 2 1 1 1 1 1 1 1 1 . . . 1 1 . . 1 . . . . . . . . Largest Inventory Capacity 25 | 8 8 8 25 20 20 20 25 25 25 25 25 25 25 25 25 25 25 25 25 25 25 25 25 25 25 25 25 25 25 25 25 25 25 25 Average Capacity 23 | 7 8 8 19 20 20 20 24 25 19 25 25 25 25 25 25 25 25 25 25 25 25 25 25 25 25 25 25 25 25 25 25 25 25 22 Most Carried 25 | 1 8 8 20 20 20 20 25 25 25 25 25 25 25 25 25 25 25 25 25 25 25 24 25 25 25 25 25 25 25 25 25 25 25 25 Average Carried 22 | . 6 7 18 19 19 19 24 24 19 24 24 22 24 24 23 24 24 24 24 25 24 22 23 24 24 25 24 25 23 24 22 23 24 19 Final Capacity 25 | 8 8 8 20 20 20 20 25 25 25 25 25 25 25 25 25 25 25 25 25 25 25 25 25 25 25 25 25 25 25 25 25 25 25 5 Final Carried 25 | 1 8 8 20 20 20 19 25 25 25 25 23 25 25 21 24 25 25 25 25 25 25 22 24 24 25 25 25 25 24 25 23 24 25 3 Class Distribution -------------------- 31% | Scavenger-Executioner 25% | Tank 14% | Gunner 10% | Scavenger-Gunner 6% | Scavenger-Tank 4% | Mutant Dominant Class ---------------- Mutant | -10/Materials Mutant | -10/Mines Tank | -9/Materials Scavenger-Tank | -9/Mines Tank | -9/Exiles Tank | -8/Mines Tank | -8/Materials Gunner | -7/Factory Gunner | -7/Waste Gunner | -7/Factory Gunner | -7/Garrison Gunner | -6/Factory Tank | -6/Lower Caves Tank | -6/Lower Caves Tank | -6/Zion Tank | -5/Proximity Caves Scavenger-Tank | -5/Factory Scavenger-Gunner | -5/Extension Scavenger-Gunner | -5/Cetus Scavenger-Gunner | -5/Archives Scavenger-Gunner | -5/Hub_04(d) Scavenger-Executioner | -4/Factory Scavenger-Executioner | -4/Waste Scavenger-Executioner | -4/Factory Scavenger-Executioner | -4/Upper Caves Scavenger-Executioner | -4/Upper Caves Scavenger-Mutant | -4/Zhirov Scavenger-Executioner | -3/Proximity Caves Scavenger-Executioner | -3/Research Scavenger-Executioner | -3/Quarantine Scavenger-Executioner | -3/Section 7 Scavenger-Executioner | -2/Research Scavenger-Executioner | -2/Testing Scavenger-Executioner | -1/Access Resources | -11 -10 -10 -9 -9 -9 -8 -8 -7 -7 -7 -7 -6 -6 -6 -6 -5 -5 -5 -5 -5 -5 -4 -4 -4 -4 -4 -4 -3 -3 -3 -3 -2 -2 -1 ----------- Run | Yrd Mat Min Mat Min Exi Min Mat Fac Was Fac Gar Fac Low Low Zio Pro Fac Ext Cet Arc Hub Fac Was Fac Upp Upp Zhi Pro Res Qua Sec Res Tes Acc Matter Collected 30728 | 212 291 35 1125 277 . 216 1490 166 166 124 234 1587 78 493 58 448 1950 1833 754 40 2680 688 594 2295 300 73 . 566 451 2464 1571 549 2271 4649 Remotely 5114 | . . . . . . . . . . . . . . . . . . . . . 176 469 396 866 . . . . 174 . 363 . . 2670 Salvage Created 50361 | . 776 191 1849 345 . 178 1845 253 1470 563 864 2164 45 525 . 235 2621 1840 693 40 4373 804 1906 3965 258 52 . 555 598 3946 3713 874 3165 9655 Parts 2652 | . 52 6 132 18 . 5 125 10 8 38 46 88 6 30 . 23 150 139 40 3 216 35 31 159 23 1 . 29 21 244 211 65 224 474 Haulers Intercepted 32 | . 2 . 5 . . . 6 . . . . . . . . . 1 . . . 5 2 . 7 . . . . 2 1 . . . 1 Recyclers Shooed 22 | . 2 . 3 . . . 3 . . . . 3 . . . . 4 . . . 1 1 . 1 . . . . . . . 2 1 1 Parts Field Recycled . | . . . . . . . . . . . . . . . . . . . . . . . . . . . . . . . . . . . Retrieved Matter . | . . . . . . . . . . . . . . . . . . . . . . . . . . . . . . . . . . . Parts Self-Destructed 86 | . . . . . . . . . . . . . 6 16 . 22 . . . . . . . . 13 . . 29 . . . . . . Prevented 1 | . . . . . . . . . . . . . . 1 . . . . . . . . . . . . . . . . . . . . Kills | -11 -10 -10 -9 -9 -9 -8 -8 -7 -7 -7 -7 -6 -6 -6 -6 -5 -5 -5 -5 -5 -5 -4 -4 -4 -4 -4 -4 -3 -3 -3 -3 -2 -2 -1 ------- Run | Yrd Mat Min Mat Min Exi Min Mat Fac Was Fac Gar Fac Low Low Zio Pro Fac Ext Cet Arc Hub Fac Was Fac Upp Upp Zhi Pro Res Qua Sec Res Tes Acc Combat Hostiles Destroyed 654 | . 19 4 27 22 . 3 33 5 6 14 29 31 1 14 . 5 34 17 6 . 54 9 6 38 7 . . 11 4 47 52 9 31 116 Melee 1 | . . . . 1 . . . . . . . . . . . . . . . . . . . . . . . . . . . . . . Guns 544 | . 18 2 23 9 . 3 33 5 1 . 4 28 1 8 . 5 32 17 6 . 54 9 6 36 6 . . 11 3 46 39 9 31 99 Cannons 46 | . . 2 . . . . . . 5 14 25 . . . . . . . . . . . . . . . . . . . . . . . AOE 60 | . 1 . 4 12 . . . . . . . 3 . 6 . . 2 . . . . . . 2 . . . . . . 13 . . 17 Classes Destroyed 36 | . 6 . 5 2 . . 2 1 2 . 1 2 . 3 . 1 . 1 . . . . . 3 . 1 . . . 4 . . . 2 Worker 23 | . 3 . 1 . . . 1 . . . . 2 . . . . 1 . . . 3 . . 4 . . . . . 3 1 1 1 2 Builder 41 | . . . 3 1 . . 1 . . 1 . 3 . . . . 1 1 . . 2 2 . 6 . . . . . 1 2 2 5 10 Tunneler 4 | . . . 2 . . . . . . . . . . . . . . . . . 2 . . . . . . . . . . . . . Hauler 32 | . 2 . 5 . . . 6 . . . . . . . . . 1 . . . 5 2 . 7 . . . . 2 1 . . . 1 Recycler 29 | . . . 6 . . . 3 . . . . 4 . . . . 2 3 . . 2 . . 3 . . . . . . 2 . 1 3 Carrier 1 | . . . . . . . . . . . . . . . . . . . . . . . . . . . . . . . . . . 1 Minesweeper 2 | . . . . . . . . . . . . . . 1 . . . . . . . . . . . 1 . . . . . . . . Mechanic 3 | . . . 1 . . . . . . . . . . . . . . . . . . . . 1 . . . . . . . . . 1 Operator 15 | . 1 . 2 . . . 2 . . 2 . . . . . . . 2 . . 4 . . 1 . . . . . . 1 . . . Drone 4 | . . . . . . . . . . . . . . . . 2 . . . . . . . . . . . 2 . . . . . . Watcher 32 | . 2 . 5 . . . 3 . . 2 1 2 . . . . . 2 2 . 2 1 . 3 . . . . 2 3 . . . 2 Swarmer 107 | . 3 . 10 6 . . 14 . . 3 7 3 . 4 . . 3 5 . . . 3 . 3 4 . . 4 1 3 5 . . 26 Cutter 6 | . . . . . . . . . . . 3 . . . . . . . . . 3 . . . . . . . . . . . . . Saboteur 6 | . . . . . . . . . . . . . . . . . . . . . . . . 1 . . . . . . 2 . . 3 Grunt 237 | . 16 4 7 2 . 3 9 4 . 3 11 14 . . . . 14 . . . 29 1 . 11 . . . 2 . 18 27 2 10 50 Brawler 15 | . . . . . . . . . . . . 1 . . . . 1 . . . 2 1 . . . . . . . . 4 . 1 5 Duelist 19 | . . . . 1 . . . . . . 1 5 . . . . . . . . 1 1 . . . . . . . . 2 . 1 7 Protector 7 | . . . . . . . . . . . . 1 . . . . . . . . 1 1 . . . . . . . . 1 . . 3 Researcher 5 | . . . . . . . . . . . . . . . . . . . . . . . . . . . . . . 2 . . 3 . Sentry 55 | . . . 10 2 . . 7 . . 1 7 3 . . . 1 3 4 . . 7 . . 2 . . . 1 . . 5 2 . . Specialist 5 | . . . . . . . . . . . . . . . . . . . . . . . . 2 . . . . . 1 . . . 2 Hunter 47 | . . . . . . . 2 . . 1 . 1 . 2 . . 6 4 . . 2 . . 9 . . . 2 2 4 2 . 5 5 Programmer 84 | . . . . . . . . 1 . 5 . 3 1 . . 2 7 1 . . 8 2 . 8 . . . . . 17 4 4 12 9 Heavy 5 | . . . . . . . 1 . . 1 . . . . . . . . . . 1 . . 1 . . . . . . . 1 . . Q-Series 4 | . . . . . . . . . . . . . . . . . . . . . . . . . . . . . . 2 . . . 2 Behemoth 5 | . . . . . . . . . . . . . . . . . . 2 . . . . . . 1 . . . 1 . . . . 1 Compactor 12 | . . . . . . . . . 6 . . . . . . . . . . . . . 6 . . . . . . . . . . . Cetus Guard 6 | . . . . . . . . . . . . . . . . . . . 6 . . . . . . . . . . . . . . . Investigator 1 | . . . . . . . . . . . . . . . . . . . . . . . . . . . . . . . . . . 1 Striker 2 | . . . . . . . . . . . . . . . . . . . . . . . . . . . . . . . . . . 2 Executioner 2 | . . . . . . . . . . . . . . . . . . . . . . . . 1 . . . . . . . . . 1 Alpha 7 2 | . . . . . . . . . . . . . . . . . . . . . . . . . . . . . . 1 . . 1 . Fortress 1 | . . . . . . . . . . . . . . . . . . . . . . . . . . . . . . 1 . . . . Protovariant L 1 | . . . . . . . . . . . . . . . . . . . . . . . . . . . . . . . . . 1 . Samaritan 1 | . . . . . . . . . . . . . . . . . . . . . . . . . . 1 . . . . . . . . Master Thief 4 | . . . . . . . . . . . . . . 2 . . . . . . . . . . 2 . . . . . . . . . Assembled 11 | . . . . 11 . . . . . . . . . . . . . . . . . . . . . . . . . . . . . . Wasp 1 | . . . . . . . . . . 1 . . . . . . . . . . . . . . . . . . . . . . . . Thug 3 | . . . . . . . . . . 1 . . . . . . . 2 . . . . . . . . . . . . . . . . Butcher 7 | . . . . . . . . . . . . . . 5 . . . . 2 . . . . . . . . . . . . . . . Martyr 4 | . . . . . . . . . 2 . . . . . . . . . . . . . 2 . . . . . . . . . . . Mutant 1 | . . . . . . . . . . . . . . 1 . . . . . . . . . . . . . . . . . . . . Best Kill Streak 46 | . 8 2 8 11 . 2 4 2 3 2 9 7 1 4 . 2 5 5 4 . 6 5 2 26 4 1 . 3 2 6 14 3 6 46 Combat Bots Only 42 | . 8 2 4 11 . 2 4 2 3 2 9 6 1 4 . 2 5 5 3 . 5 4 2 18 4 . . 3 2 5 14 2 4 42 Max Kills in Single Turn 6 | . 3 1 4 5 . 1 1 1 1 1 1 3 1 3 . 1 3 3 2 . 2 2 1 4 2 1 . 2 1 3 3 2 3 6 Gunslinging 4 | . . . . . . . . . . . . 1 . . . . 1 1 1 . 1 1 . 2 . . . . . 2 1 . 2 4 Exploded 5 | . 1 . 3 5 . . . . . . . 2 . 3 . . 1 . . . . . . 2 . . . . . . 3 . . 4 Melee 1 | . . . . 1 . . . . . . . . . . . . . . . . . . . . . . . . . . . . . . Uniques/NPCs Destroyed 1 | . . . . . . . . . . . . . . . . . . 1 . . . . . . . . . . . . . . . . A7 (-5/Extension) Combat | -11 -10 -10 -9 -9 -9 -8 -8 -7 -7 -7 -7 -6 -6 -6 -6 -5 -5 -5 -5 -5 -5 -4 -4 -4 -4 -4 -4 -3 -3 -3 -3 -2 -2 -1 -------- Run | Yrd Mat Min Mat Min Exi Min Mat Fac Was Fac Gar Fac Low Low Zio Pro Fac Ext Cet Arc Hub Fac Was Fac Upp Upp Zhi Pro Res Qua Sec Res Tes Acc Hostile Shots Fired 2752 | . 87 7 70 74 . 28 116 10 . 11 110 212 . 79 . 12 161 83 33 . 197 18 . 210 31 . . 23 34 186 109 36 135 680 Missed 750 | . 20 . 19 15 . 7 37 3 . 3 38 71 . 17 . 6 44 24 11 . 42 4 . 54 4 . . 6 9 38 32 10 39 197 Damage Taken 31925 | . 731 91 469 642 . 306 875 113 . 647 769 2366 . 871 . 61 1399 810 604 . 2890 161 . 1953 642 . . 190 219 2473 817 448 1294 10084 Core 3122 | . 211 10 50 96 . 13 71 17 . 25 53 139 . 9 . . 55 74 . . 315 14 . 102 46 . . . 11 87 38 . 83 1603 Absorbed by Shields 10814 | . . . 156 234 . 72 255 . . . . 39 . 335 . 64 919 419 . . 794 151 . 687 . . . 199 230 1025 859 462 1335 2579 Reduced by Siege Mode 1289 | . . . . . . . . . . . . 86 . 74 . . . . 13 . 82 . . 144 47 . . 12 6 137 22 12 113 541 Redirected to Core 284 | . . . . . . . . . . . . . . . . . . . . . . . . . . . . . . 6 . . . 278 Redirected to Shielding 204 | . 51 . . . . . . . . . . . . . . . . . . . . . . . . . . . . . . . . 153 Regen/Repaired (Parts) 6820 | . 24 . 74 . . . . . 117 379 . 167 . . . . 133 173 55 . 412 51 641 645 189 . . 69 419 1597 211 29 724 711 Core Remaining (%) 74 | 100 . 11 . . . 60 87 . . . 86 . . . . 82 . . . . 55 . . . . . . 85 . . 83 . 94 . Volleys Fired 1179 | . 64 5 89 32 . 10 105 9 19 . 7 82 3 32 . 10 58 55 17 4 115 15 16 57 7 3 . 15 11 79 60 15 55 130 Largest 7 | . 2 2 3 3 . 3 3 4 1 . 4 4 4 4 . 4 5 5 5 5 5 6 6 6 6 6 . 6 6 6 6 7 7 7 Hottest 278 | . 112 55 70 86 . 63 69 94 25 . 132 135 113 119 . 113 151 160 171 175 162 199 210 210 206 206 . 206 210 210 210 245 245 278 Shots Fired 5577 | . 125 10 262 85 . 30 315 36 52 40 89 302 12 110 . 40 288 273 86 20 557 90 97 342 42 20 . 90 65 476 324 104 374 821 Gun 5385 | . 120 5 259 74 . 30 315 36 19 . 28 293 12 101 . 40 287 273 86 20 557 90 97 342 42 20 . 90 65 476 318 104 374 812 Cannon 139 | . . 5 . . . . . . 33 40 61 . . . . . . . . . . . . . . . . . . . . . . . Launcher 53 | . 5 . 3 11 . . . . . . . 9 . 9 . . 1 . . . . . . . . . . . . . 6 . . 9 Special . | . . . . . . . . . . . . . . . . . . . . . . . . . . . . . . . . . . . Kinetic 5463 | . 59 10 259 74 . 30 315 36 52 40 89 293 12 101 . 40 287 273 86 20 557 90 97 342 42 20 . 90 65 476 318 104 374 812 Thermal 50 | . 50 . . . . . . . . . . . . . . . . . . . . . . . . . . . . . . . . . Explosive 53 | . 5 . 3 11 . . . . . . . 9 . 9 . . 1 . . . . . . . . . . . . . 6 . . 9 Electromagnetic 11 | . 11 . . . . . . . . . . . . . . . . . . . . . . . . . . . . . . . . . Robot Hit Streak 57 | . 11 10 12 12 . 8 28 13 17 28 34 32 6 36 . 4 12 12 13 5 57 13 44 26 4 9 . 12 8 46 16 20 23 32 Robot Miss Streak 12 | . 4 . 3 6 . 3 3 1 2 1 4 3 2 4 . 5 5 5 4 1 5 3 1 4 1 1 . 5 4 12 6 7 3 6 Penetration Max 2 | . . . . . . . . . . . . 1 . . . . 1 1 1 . 1 1 . 1 . . . 1 1 1 1 1 1 2 Secondary Targets 130 | . 2 . 2 1 . 2 4 . . . . 5 . 4 . . 9 2 2 . 14 3 . 8 1 . . . . 13 8 1 7 42 Max Gunslinging Chain 4 | . 1 . 1 1 . 1 1 . . . . 1 . 1 . . 1 2 1 . 2 2 . 2 1 . . . . 2 2 1 2 4 Autonomous 135 | . . . . . . . . . 33 40 62 . . . . . . . . . . . . . . . . . . . . . . . Shots Hit Robots 3636 | . 71 8 151 38 . 20 225 26 50 39 71 208 8 80 . 14 157 164 59 7 383 54 97 203 21 11 . 40 34 295 184 56 247 615 Core Hits 1929 | . 48 6 82 38 . 10 85 13 11 15 28 109 3 37 . 9 90 78 31 2 180 34 22 123 7 6 . 21 13 131 141 28 113 415 Critical Kills 123 | . . . . 1 . . . . 1 . . . . . . . 3 . 5 . 8 3 2 24 2 1 . 3 1 20 20 1 7 21 Critical Parts Destroyed 185 | . . . . . . . . . 1 . . 5 . . . . 2 5 3 1 7 3 2 28 . 2 . 1 3 32 20 3 23 44 Critical Strikes 352 | . 3 1 . 1 . . . . 3 2 8 5 . . . . 5 5 11 1 16 8 8 53 3 3 . 4 4 60 41 5 32 70 Burn 3 | . 3 . . . . . . . . . . . . . . . . . . . . . . . . . . . . . . . . . Destroy 332 | . . . . 1 . . . . . . . 5 . . . . 5 5 11 1 15 8 8 53 2 3 . 4 4 60 41 4 32 70 Blast 12 | . . 1 . . . . . . 1 2 8 . . . . . . . . . . . . . . . . . . . . . . . Smash 2 | . . . . . . . . . 2 . . . . . . . . . . . . . . . . . . . . . . . . . Impale 3 | . . . . . . . . . . . . . . . . . . . . . 1 . . . 1 . . . . . . 1 . . Melee Attacks 103 | . . . . . . 2 3 . 4 5 1 1 . 1 . . 7 4 . . 10 . 17 4 6 . . 2 6 11 2 9 7 1 Kinetic 3 | . . . . . . . . . . . . . . . . . . . . . . . . . . . . . . 3 . . . . Impact 17 | . . . . . . 2 3 . 4 5 1 1 . 1 . . . . . . . . . . . . . . . . . . . . Slashing . | . . . . . . . . . . . . . . . . . . . . . . . . . . . . . . . . . . . Piercing 83 | . . . . . . . . . . . . . . . . . 7 4 . . 10 . 17 4 6 . . 2 6 8 2 9 7 1 Sneak Attacks 30 | . . . . . . . . . 4 3 . . . . . . 1 4 . . . . 17 . . . . . . . . 1 . . Combat Hostiles . | . . . . . . . . . . . . . . . . . . . . . . . . . . . . . . . . . . . Follow-up Attacks . | . . . . . . . . . . . . . . . . . . . . . . . . . . . . . . . . . . . Damage Inflicted 112492 | . 1305 143 2590 1273 . 336 3421 410 2902 3427 4305 5299 173 2288 . 310 3711 4364 1800 184 9801 1701 3216 7073 526 322 . 756 776 8226 9136 1737 6694 24287 Guns 89795 | . 890 71 2139 522 . 302 3385 410 272 . 375 4210 173 1434 . 310 3453 4055 1800 184 9441 1700 2104 6692 397 289 . 756 760 8135 5720 1593 6594 21629 Cannons 9124 | . . 56 . . . . . . 2385 2753 3930 . . . . . . . . . . . . . . . . . . . . . . . Explosions 10173 | . 396 . 394 729 . . . . . 338 . 1033 . 824 . . 136 . . . 158 . . 256 . . . . . . 3389 . . 2520 Melee 2282 | . . . . . . . . . 245 336 . . . . . . 68 260 . . 37 . 1112 . 129 . . . . 53 . 42 . . Ramming 1118 | . 19 16 57 22 . 34 36 . . . . 56 . 30 . . 54 49 . . 165 1 . 125 . 33 . . 16 38 27 102 100 138 Kinetic 98370 | . 288 127 2139 522 . 302 3385 410 2657 2753 4305 4210 173 1434 . 310 3453 4055 1800 184 9441 1700 2104 6692 397 289 . 756 760 8188 5720 1593 6594 21629 Thermal 817 | . 479 . . . . . . . . 338 . . . . . . . . . . . . . . . . . . . . . . . . Explosive 9677 | . 396 . 394 729 . . . . . . . 1033 . 824 . . 136 . . . . . . 256 . . . . . . 3389 . . 2520 Electromagnetic 281 | . 123 . . . . . . . . . . . . . . . . . . . 158 . . . . . . . . . . . . . Impact 581 | . . . . . . . . . 245 336 . . . . . . . . . . . . . . . . . . . . . . . . Slashing . | . . . . . . . . . . . . . . . . . . . . . . . . . . . . . . . . . . . Piercing 1648 | . . . . . . . . . . . . . . . . . 68 260 . . 37 . 1112 . 129 . . . . . . 42 . . Highest Corruption 12 | . . . 2 2 2 2 . . . 3 . . . 2 . 1 5 5 2 2 11 1 1 3 3 3 3 3 . 6 8 4 8 12 Average Corruption 2 | . . . 2 2 2 2 . . . 1 . . . 1 . 1 3 2 2 1 1 1 1 1 3 3 3 3 . 4 6 2 6 5 Corruption Purged 27 | . . . . . . . . . . 3 . . . 2 . . 3 5 . 2 . . . . . . . . . 12 . . . . Corruption Blocked . | . . . . . . . . . . . . . . . . . . . . . . . . . . . . . . . . . . . Effects 481 | . . . 27 9 6 12 . . . 7 . . . 2 . 2 26 32 5 . 34 1 11 34 25 14 4 29 . 60 27 11 57 46 Message Errors 104 | . . . 6 . 2 2 . . . 1 . . . . . . 7 5 2 . 8 . 3 10 6 4 2 11 . 14 5 4 6 6 Matter Fused 100 | . . . 7 2 2 1 . . . 2 . . . 2 . 1 2 9 . . 7 1 2 7 7 . . 4 . 11 6 2 17 8 Heat Flow Errors 62 | . . . 5 3 1 . . . . . . . . . . 1 3 5 . . 5 . 2 4 5 2 . 3 . 8 3 1 7 4 Energy Discharges 50 | . . . 1 1 1 4 . . . 2 . . . . . . 7 4 . . 3 . 1 3 2 1 1 5 . 10 2 . 1 1 Parts Rejected 7 | . . . . . . . . . . . . . . . . . . . . . 2 . . 2 . . . . . 1 . . 1 1 Parts Fused 7 | . . . 1 . . 1 . . . 1 . . . . . . . . . . . . . 1 . . . 1 . 1 . . . 1 Data Loss (minor) 55 | . . . 4 1 . 3 . . . 1 . . . . . . 4 2 1 . 4 . 2 3 1 3 1 1 . 5 2 2 11 4 Data Loss (major) 29 | . . . 2 1 . 1 . . . . . . . . . . 1 3 1 . 1 . . 1 4 . . 2 . 3 1 1 4 3 Misfires 20 | . . . . 1 . . . . . . . . . . . . 1 . 1 . 1 . 1 1 . 2 . 1 . 4 2 . 4 1 Alerts 10 | . . . . . . . . . . . . . . . . . 1 2 . . . . . 1 . 2 . . . 1 1 1 . 1 Misdirections 4 | . . . . . . . . . . . . . . . . . . . . . . . . . . . . . . . . . . 4 Weapon Failures 33 | . . . 1 . . . . . . . . . . . . . . 2 . . 3 . . 1 . . . 1 . 2 5 . 6 12 Overload Shots . | . . . . . . . . . . . . . . . . . . . . . . . . . . . . . . . . . . . Overflow Damage 2127 | . . . 40 4 . . . . 108 927 637 32 . 40 . . 28 20 . . 46 . 14 26 . . . . . 3 36 38 11 117 Projectiles 1395 | . . . . . . . . . . 758 637 . . . . . . . . . . . . . . . . . . . . . . . Explosions 263 | . . . 40 4 . . . . . 39 . 32 . 40 . . . . . . . . . . . . . . . . 36 . . 72 Melee 469 | . . . . . . . . . 108 130 . . . . . . 28 20 . . 46 . 14 26 . . . . . 3 . 38 11 45 Knockbacks 35 | . . 2 . . . . . . 1 11 11 . . . . . . 1 . . 4 . . 1 . . . . . 1 . 1 1 1 Impact 12 | . . 1 . . . . . . 1 1 . . . . . . . 1 . . 3 . . 1 . . . . . 1 . 1 1 1 Kinetic 20 | . . 1 . . . . . . . 9 10 . . . . . . . . . . . . . . . . . . . . . . . Secondary 3 | . . . . . . . . . . 1 1 . . . . . . . . . 1 . . . . . . . . . . . . . Self-Inflicted Damage 438 | . . . . 49 . . . . . 92 . 27 . 132 . . 34 . . . 72 . . . . . . . . . 26 . . 6 Shots 10 | . . . . 2 . . . . . 1 . 1 . 3 . . 1 . . . 1 . . . . . . . . . 1 . . . Rammed 83 | . 2 4 9 3 . 3 6 . . . . 4 . . . . 7 5 . . 13 1 . 7 . 5 . . . 2 2 3 4 3 Targets Rammed 93 | . 3 4 10 5 . 3 8 . . . . 4 . 1 . . 7 5 . . 13 1 . 8 . 6 . . 1 2 2 3 4 3 Kicked . | . . . . . . . . . . . . . . . . . . . . . . . . . . . . . . . . . . . Crushed 10 | . 1 . 1 2 . . 2 . . . . . . 1 . . . . . . . . . 1 . 1 . . 1 . . . . . Highest Temperature 454 | . 341 28 305 281 214 195 204 144 . 7 389 375 109 390 . 249 427 382 90 42 215 188 192 454 358 190 . 183 . 377 195 261 170 328 Average Temperature 90 | . 130 17 44 62 117 100 36 57 . 7 138 104 51 147 . 108 143 105 21 19 30 61 69 134 135 92 . 39 . 170 104 99 78 111 Received Heat Transfer 4586 | . 303 51 122 114 . 157 267 54 . 21 231 524 . 12 . 4 183 83 9 . 576 12 . 288 415 . . 8 8 146 167 24 73 734 Effects 31 | . 5 . 1 1 . . . . . . 1 1 . 1 . . 12 3 . . . . . 2 . . . . . 2 . . . 2 Shutdowns 12 | . . . . . . . . . . . 1 . . . . . 6 2 . . . . . 1 . . . . . 1 . . . 1 Energy Bleed 7 | . 1 . . 1 . . . . . . . 1 . 1 . . 1 1 . . . . . . . . . . . 1 . . . . Interference 7 | . 2 . 1 . . . . . . . . . . . . . 3 . . . . . . . . . . . . . . . . 1 Matter Decay 1 | . . . . . . . . . . . . . . . . . 1 . . . . . . . . . . . . . . . . . Short Circuit 2 | . 2 . . . . . . . . . . . . . . . . . . . . . . . . . . . . . . . . . Damage (minor) 2 | . . . . . . . . . . . . . . . . . 1 . . . . . . 1 . . . . . . . . . . Siege Activations 97 | . . . . . . . . . . . . 4 . 4 . . . . 1 . 15 1 1 7 3 . . 5 1 15 9 6 12 13 Total Turns 2081 | . . . . . . . . . . . . 118 . 67 . . . . 12 . 306 17 328 220 58 . . 59 17 303 93 54 153 276 Longest Duration 328 | . . . . . . . . . . . . 55 . 29 . . . . 12 . 57 17 328 60 40 . . 17 17 96 20 20 32 102 Robots Corrupted . | . . . . . . . . . . . . . . . . . . . . . . . . . . . . . . . . . . . Combat Hostiles . | . . . . . . . . . . . . . . . . . . . . . . . . . . . . . . . . . . . Parts Fried 7 | . 1 . . . . . . . 2 2 . . . . . . . . . . 2 . . . . . . . . . . . . . Impact Corruptions 17 | . . . . . . . . . 2 7 . . . . . . . . . . 1 . . 1 . . . . . 1 . 2 1 2 Robots Melted . | . . . . . . . . . . . . . . . . . . . . . . . . . . . . . . . . . . . Combat Hostiles . | . . . . . . . . . . . . . . . . . . . . . . . . . . . . . . . . . . . Parts Melted 10 | . 4 . . 1 . . . . . 2 . . . . . . . 2 . . . . . 1 . . . . . . . . . . Heat Transferred 1681 | . 1431 . . . . . . . . 250 . . . . . . . . . . . . . . . . . . . . . . . . Parts Sabotaged 5 | . . . . . . . . . . . . . . . . . . . . . . . . . . . . . . . . . 1 4 Parts Stolen 6 | . . . . . . . . . . . . . . 4 . . . . . . . . . . 2 . . . . . . . . . Parts Stripped 18 | . . . . . . . . . . . . . . . . . . . . . . . . . . . . . . 18 . . . . Power Chain Reactions 1 | . . . . . . . . . . . . . . . . . . . . . 1 . . . . . . . . . . . . . Alert | -11 -10 -10 -9 -9 -9 -8 -8 -7 -7 -7 -7 -6 -6 -6 -6 -5 -5 -5 -5 -5 -5 -4 -4 -4 -4 -4 -4 -3 -3 -3 -3 -2 -2 -1 ------- Run | Yrd Mat Min Mat Min Exi Min Mat Fac Was Fac Gar Fac Low Low Zio Pro Fac Ext Cet Arc Hub Fac Was Fac Upp Upp Zhi Pro Res Qua Sec Res Tes Acc Peak Influence 3341 | . 344 50 475 341 . 60 621 429 99 317 1003 1072 . . . . 603 360 84 61 1121 596 166 1078 . . . . 143 739 1601 1024 840 3341 Initial 900 | . . . . 177 . . . 282 94 . 18 526 . . . . . 264 28 33 21 531 158 . . . . . . 80 415 900 281 266 Average 325 | . 88 43 227 226 . 21 178 310 24 132 651 715 . . . . 342 184 61 53 251 507 35 431 . . . . 69 264 1125 760 447 1515 Maximum Alert Level 5 | . 1 . 2 1 . . 2 2 . 1 3 3 . . . . 2 1 . . 4 2 . 3 . . . . . 3 5 3 3 5 Low Security (%) 49 | 100 87 100 50 58 . 100 69 . 100 71 19 . . . . . 17 64 100 100 65 . 100 19 . . . . 100 42 . . . . Level 1 21 | . 12 . 36 41 . . 12 76 . 28 3 . . . . . 50 35 . . 17 7 . 31 . . . . . 36 . . 49 16 Level 2 16 | . . . 13 . . . 18 23 . . 16 54 . . . . 32 . . . 8 92 . 37 . . . . . 12 23 37 37 27 Level 3 8 | . . . . . . . . . . . 61 45 . . . . . . . . 5 . . 10 . . . . . 8 13 62 13 2 Level 4 1 | . . . . . . . . . . . . . . . . . . . . . 2 . . . . . . . . . 60 . . 6 Level 5 . | . . . . . . . . . . . . . . . . . . . . . . . . . . . . . . . 3 . . 4 High Security 1 | . . . . . . . . . . . . . . . . . . . . . . . . . . . . . . . . . . 42 Max Security . | . . . . . . . . . . . . . . . . . . . . . . . . . . . . . . . . . . . Squads Dispatched 156 | . 5 . 6 . . . 4 2 . 12 . 9 . . . . 10 1 . . 14 3 . 14 . . . . 4 12 13 3 12 32 Investigation 26 | . 4 . 4 . . . 1 1 . 2 . 1 . . . . 4 . . . 2 . . 3 . . . . 2 . . . 1 1 Extermination 45 | . . . . . . . . 1 . 7 . 3 . . . . 4 . . . 4 1 . 5 . . . . . 9 2 1 5 3 Reinforcement 40 | . 1 . 2 . . . 3 . . 3 . 2 . . . . 1 1 . . 4 . . 6 . . . . 2 3 3 1 4 4 Assault 40 | . . . . . . . . . . . . 3 . . . . 1 . . . 2 2 . . . . . . . . 6 1 2 23 Garrison 5 | . . . . . . . . . . . . . . . . . . . . . 2 . . . . . . . . . 2 . . 1 Intercept . | . . . . . . . . . . . . . . . . . . . . . . . . . . . . . . . . . . . Searches Triggered . | . . . . . . . . . . . . . . . . . . . . . . . . . . . . . . . . . . . Construction Impeded 6 | . . . 1 . . . . . . . . 1 . . . . . 1 . . . . . 2 . . . . . . . . . 1 Haulers Reinforced 4 | . . . . . . . . . . . . . . . . . . . . . . . . 2 . . . . . . 1 . . 1 Active Scanning Responses . | . . . . . . . . . . . . . . . . . . . . . . . . . . . . . . . . . . . Cargo Convoy Interrupts 1 | . . . . . . . . . . . . . . . . . . . . . . . . 1 . . . . . . . . . . Stealth | -11 -10 -10 -9 -9 -9 -8 -8 -7 -7 -7 -7 -6 -6 -6 -6 -5 -5 -5 -5 -5 -5 -4 -4 -4 -4 -4 -4 -3 -3 -3 -3 -2 -2 -1 --------- Run | Yrd Mat Min Mat Min Exi Min Mat Fac Was Fac Gar Fac Low Low Zio Pro Fac Ext Cet Arc Hub Fac Was Fac Upp Upp Zhi Pro Res Qua Sec Res Tes Acc Distress Signals 30 | . 3 . . 1 . . 2 . . . . 2 . . . . 3 3 2 . 1 . . 4 . . . . 4 . 3 . 2 . Communications Jammed 4 | . . . . . . . . . . . . . . . . 2 . . . . 2 . . . . . . . . . . . . . Distress Signals 2 | . . . . . . . . . . . . . . . . . . . . . 2 . . . . . . . . . . . . . Times Spotted 930 | . 28 4 47 28 . 3 49 7 6 19 26 46 . 19 . 5 43 27 11 . 80 12 6 69 5 . . 7 11 49 68 16 49 190 Peak Tracking Total 34 | . 5 2 5 7 . 3 4 4 2 3 4 6 . 5 . 2 5 6 5 . 6 5 2 14 3 . . 3 5 5 14 5 4 34 Tactical Retreats 48 | . 1 . 2 1 . . 3 2 . 1 2 1 . 2 . . 2 1 . . 7 1 . 3 . . . . . . 4 2 3 10 Traps | -11 -10 -10 -9 -9 -9 -8 -8 -7 -7 -7 -7 -6 -6 -6 -6 -5 -5 -5 -5 -5 -5 -4 -4 -4 -4 -4 -4 -3 -3 -3 -3 -2 -2 -1 ------- Run | Yrd Mat Min Mat Min Exi Min Mat Fac Was Fac Gar Fac Low Low Zio Pro Fac Ext Cet Arc Hub Fac Was Fac Upp Upp Zhi Pro Res Qua Sec Res Tes Acc Traps Triggered 27 | . 2 . 2 . . . . 2 . 1 6 1 . . . . 1 3 . . 2 1 . 2 . . . . . 1 . 1 1 1 Indirectly 1 | . . . . . . . . . . . . . . . . . . . . . . . . 1 . . . . . . . . . . Trap Hack Attempts . | . . . . . . . . . . . . . . . . . . . . . . . . . . . . . . . . . . . Triggered . | . . . . . . . . . . . . . . . . . . . . . . . . . . . . . . . . . . . Disarmed . | . . . . . . . . . . . . . . . . . . . . . . . . . . . . . . . . . . . Reprogrammed . | . . . . . . . . . . . . . . . . . . . . . . . . . . . . . . . . . . . Reused 2 | . . . . . . . . . . . . . . 2 . . . . . . . . . . . . . . . . . . . . Traps Extracted . | . . . . . . . . . . . . . . . . . . . . . . . . . . . . . . . . . . . Installed 14 | . . . . . . . . . . . . . . 8 . . . . . . . . . . . 6 . . . . . . . . Triggered 3 | . . . . . . . . . . . . . . 2 . . . . . . . . . . . . . 1 . . . . . . Machines | -11 -10 -10 -9 -9 -9 -8 -8 -7 -7 -7 -7 -6 -6 -6 -6 -5 -5 -5 -5 -5 -5 -4 -4 -4 -4 -4 -4 -3 -3 -3 -3 -2 -2 -1 ---------- Run | Yrd Mat Min Mat Min Exi Min Mat Fac Was Fac Gar Fac Low Low Zio Pro Fac Ext Cet Arc Hub Fac Was Fac Upp Upp Zhi Pro Res Qua Sec Res Tes Acc Machines Disabled 77 | . . . 2 1 . . 2 . . 3 1 13 . . . . 6 . . 1 10 1 . 10 . . . 1 . 10 3 . 8 5 Max in Single Turn 5 | . . . 1 1 . . 1 . . 2 1 5 . . . . 2 . . 1 4 1 . 2 . . . 1 . 1 1 . 1 1 Garrison Access 2 | . . . . . . . . . . . . . . . . . . . . . 1 . . . . . . . . 1 . . . . Network Hub 2 | . . . . . . . . . . . . . . . . . . . . . 2 . . . . . . . . . . . . . Energy Cycler 1 | . . . . . . . . . . . . . . . . . . . . . . . . . . . . . . . . . . 1 Machines Repaired . | . . . . . . . . . . . . . . . . . . . . . . . . . . . . . . . . . . . Machines Dismantled . | . . . . . . . . . . . . . . . . . . . . . . . . . . . . . . . . . . . Machines Sabotaged . | . . . . . . . . . . . . . . . . . . . . . . . . . . . . . . . . . . . Overloaded Fab Kills . | . . . . . . . . . . . . . . . . . . . . . . . . . . . . . . . . . . . Hacking | -11 -10 -10 -9 -9 -9 -8 -8 -7 -7 -7 -7 -6 -6 -6 -6 -5 -5 -5 -5 -5 -5 -4 -4 -4 -4 -4 -4 -3 -3 -3 -3 -2 -2 -1 --------- Run | Yrd Mat Min Mat Min Exi Min Mat Fac Was Fac Gar Fac Low Low Zio Pro Fac Ext Cet Arc Hub Fac Was Fac Upp Upp Zhi Pro Res Qua Sec Res Tes Acc Machines Accessed 151 | . 9 . 17 . 2 . 12 3 . 12 2 5 . . . . 11 13 . . 11 . . 10 . . 4 1 6 14 3 4 10 2 Terminals 95 | . 7 . 11 . . . 9 . . 5 2 2 . . . . 8 13 . . 10 . . 4 . . . . 3 8 1 4 6 2 Fabricators 9 | . . . . . . . . . . 2 . 1 . . . . 1 . . . . . . 2 . . . . 1 . . . 2 . Repair Stations 17 | . 1 . 2 . . . 1 2 . 2 . 1 . . . . 1 . . . . . . 1 . . . . 1 2 1 . 2 . Recycling Units 5 | . 1 . 2 . . . 1 . . . . . . . . . 1 . . . . . . . . . . . . . . . . . Scanalyzers 12 | . . . 2 . . . 1 1 . 2 . . . . . . . . . . . . . 3 . . . . . 3 . . . . Garrison Access 6 | . . . . . . . . . . 1 . 1 . . . . . . . . 1 . . . . . . . 1 1 1 . . . Total Hacks 487 | . 25 . 51 . 2 . 27 11 . 33 4 15 . . . . 28 25 . . 27 . . 82 . . 17 1 22 45 6 22 39 5 Successful 226 | . 13 . 34 . 2 . 13 3 . 18 2 6 . . . . 8 10 . . 12 . . 41 . . 17 1 7 15 1 9 14 . Failed 259 | . 11 . 16 . . . 14 8 . 15 2 9 . . . . 20 15 . . 15 . . 41 . . . . 15 30 5 13 25 5 Catastrophic 72 | . 1 . 3 . . . 4 2 . 3 1 4 . . . . 6 2 . . 3 . . 7 . . . . 6 9 3 3 12 3 Database Lockouts 2 | . 1 . 1 . . . . . . . . . . . . . . . . . . . . . . . . . . . . . . . Manual 151 | . 11 . 8 . 1 . 13 . . 4 2 5 . . . . 11 7 . . 12 . . 40 . . . . 3 16 . 11 2 5 Terminals 307 | . 22 . 31 . . . 21 . . 14 4 7 . . . . 21 25 . . 26 . . 45 . . . . 14 21 3 22 26 5 Fabricators 35 | . . . . . . . . . . 4 . 1 . . . . 3 . . . . . . 19 . . . . 3 . . . 5 . Repair Stations 51 | . 2 . 8 . . . 2 7 . 4 . 4 . . . . 2 . . . . . . 5 . . . . 2 5 2 . 8 . Recycling Units 7 | . 1 . 2 . . . 2 . . . . . . . . . 2 . . . . . . . . . . . . . . . . . Scanalyzers 54 | . . . 10 . . . 2 4 . 9 . . . . . . . . . . . . . 13 . . . . . 16 . . . . Garrison Access 13 | . . . . . . . . . . 2 . 3 . . . . . . . . 1 . . . . . . . 3 3 1 . . . Terminal Hacks 111 | . 9 . 16 . 2 . 3 . . 4 2 2 . . . . 4 9 . . 7 . . 14 . . 17 1 2 6 . 6 7 . Record 8 | . . . . . 1 . . . . . . . . . . . . . . . . . . . . . 5 1 . 1 . . . . Part Schematic 4 | . . . . . . . . . . . . . . . . . . . . . . . . . . . 4 . . . . . . . Robot Schematic 1 | . . . . . . . . . . . . . . . . . 1 . . . . . . . . . . . . . . . . . Robot Analysis 9 | . 2 . 3 . . . . . . . . . . . . . . . . . . . . . . . 4 . . . . . . . Prototype ID Bank 13 | . 2 . 4 . . . . . . . . 1 . . . . . . . . . . . 2 . . 4 . . . . . . . Open Door 9 | . . . . . . . . . . . . . . . . . 1 6 . . . . . . . . . . 1 . . . 1 . Level Access Points 1 | . . . . . . . . . . . . . . . . . . . . . . . . . . . . . . . . 1 . . Branch Access Points 3 | . . . . . . . . . . . . 1 . . . . 1 . . . . . . 1 . . . . . . . . . . Emergency Access Points 1 | . . . . . . . . . . . 1 . . . . . . . . . . . . . . . . . . . . . . . Terminal Index 1 | . . . . . . . . . . . . . . . . . . . . . . . . 1 . . . . . . . . . . Repair Station Index 1 | . . . . . . . . . . . . . . . . . . . . . . . . 1 . . . . . . . . . . Alert Level 12 | . . . . . . . 1 . . 1 . . . . . . . 2 . . 2 . . 2 . . . . . 2 . 1 1 . Unreport Threat 28 | . 3 . 2 . . . 2 . . 3 . . . . . . . 1 . . 3 . . 4 . . . . . 3 . 3 4 . Locate Traps 5 | . . . 1 . . . . . . . . . . . . . . . . . 1 . . 1 . . . . 1 . . 1 . . Dispatch Records 1 | . 1 . . . . . . . . . . . . . . . . . . . . . . . . . . . . . . . . . Patrol Status 2 | . . . 1 . . . . . . . . . . . . . . . . . . . . 1 . . . . . . . . . . Recall Investigation 1 | . . . 1 . . . . . . . . . . . . . . . . . . . . . . . . . . . . . . . Recall Reinforcements 3 | . . . 2 . . . . . . . . . . . . . . . . . . . . . . . . . . . . . 1 . Hauler Manifests 4 | . 1 . 1 . . . . . . . . . . . . . . . . . 1 . . 1 . . . . . . . . . . Zone Layout 2 | . . . 1 . . . . . . . . . . . . . 1 . . . . . . . . . . . . . . . . . Security Stations 1 | . . . . . . . . . . . 1 . . . . . . . . . . . . . . . . . . . . . . . Derelict Proto ID Bank 1 | . . . . . 1 . . . . . . . . . . . . . . . . . . . . . . . . . . . . . Fabricator Hacks 13 | . . . . . . . . . . 3 . . . . . . 1 . . . . . . 5 . . . . 2 . . . 2 . Network Status 1 | . . . . . . . . . . 1 . . . . . . . . . . . . . . . . . . . . . . . . Load Schematic 7 | . . . . . . . . . . . . . . . . . 1 . . . . . . 3 . . . . 1 . . . 2 . Build 5 | . . . . . . . . . . 2 . . . . . . . . . . . . . 2 . . . . 1 . . . . . Repair Station Hacks 28 | . 2 . 6 . . . 1 2 . 2 . 2 . . . . 2 . . . . . . 3 . . . . 1 2 1 . 4 . Scan Component 17 | . 1 . 3 . . . 1 2 . 1 . 1 . . . . 1 . . . . . . 2 . . . . 1 1 1 . 2 . Repair 11 | . 1 . 3 . . . . . . 1 . 1 . . . . 1 . . . . . . 1 . . . . . 1 . . 2 . Recycling Unit Hacks 1 | . . . . . . . 1 . . . . . . . . . . . . . . . . . . . . . . . . . . . Retrieve Components 1 | . . . . . . . 1 . . . . . . . . . . . . . . . . . . . . . . . . . . . Scanalyzer 32 | . . . 8 . . . 2 1 . 7 . . . . . . . . . . . . . 10 . . . . . 4 . . . . Insert Component 18 | . . . 3 . . . 1 1 . 4 . . . . . . . . . . . . . 5 . . . . . 4 . . . . Analyze 14 | . . . 5 . . . 1 . . 3 . . . . . . . . . . . . . 5 . . . . . . . . . . Garrison Access Hacks 3 | . . . . . . . . . . 1 . . . . . . . . . . 1 . . . . . . . . 1 . . . . Unlock Access 1 | . . . . . . . . . . 1 . . . . . . . . . . . . . . . . . . . . . . . . Seal Access 2 | . . . . . . . . . . . . . . . . . . . . . 1 . . . . . . . . 1 . . . . Unauthorized Hacks 38 | . 2 . 4 . . . 6 . . 1 . 2 . . . . 1 1 . . 4 . . 9 . . . . 2 2 . 3 1 . Terminals 29 | . 1 . 2 . . . 5 . . 1 . 2 . . . . 1 1 . . 4 . . 4 . . . . 2 2 . 3 1 . Track 1 | . . . . . . . . . . . . . . . . . . . . . . . . 1 . . . . . . . . . . Assimilate 4 | . . . . . . . 3 . . . . . . . . . . . . . 1 . . . . . . . . . . . . . Botnet 22 | . 1 . 2 . . . 2 . . 1 . 2 . . . . 1 1 . . 2 . . 2 . . . . 2 2 . 3 1 . Operators 1 | . . . . . . . . . . . . . . . . . . . . . . . . 1 . . . . . . . . . . Sabotage 1 | . . . . . . . . . . . . . . . . . . . . . 1 . . . . . . . . . . . . . Fabricators 5 | . . . . . . . . . . . . . . . . . . . . . . . . 5 . . . . . . . . . . Prioritize 2 | . . . . . . . . . . . . . . . . . . . . . . . . 2 . . . . . . . . . . Liberate 2 | . . . . . . . . . . . . . . . . . . . . . . . . 2 . . . . . . . . . . Haulers 1 | . . . . . . . . . . . . . . . . . . . . . . . . 1 . . . . . . . . . . Repair Stations . | . . . . . . . . . . . . . . . . . . . . . . . . . . . . . . . . . . . Recycling Units 4 | . 1 . 2 . . . 1 . . . . . . . . . . . . . . . . . . . . . . . . . . . Reject 1 | . . . . . . . 1 . . . . . . . . . . . . . . . . . . . . . . . . . . . Tunnel 3 | . 1 . 2 . . . . . . . . . . . . . . . . . . . . . . . . . . . . . . . Scanalyzers . | . . . . . . . . . . . . . . . . . . . . . . . . . . . . . . . . . . . Garrison Access . | . . . . . . . . . . . . . . . . . . . . . . . . . . . . . . . . . . . Data Cores Recovered 4 | . 1 . 1 . . . . . . . . . . . . . . 1 . . 1 . . . . . . . . . . . . . Used 1 | . 1 . . . . . . . . . . . . . . . . . . . . . . . . . . . . . . . . . Hacking Detections 114 | . 5 . 15 . . . 9 3 . 11 2 5 . . . . 10 8 . . 8 . . 9 . . . . 3 7 3 4 10 2 Full Trace Events 20 | . 3 . 3 . . . 1 . . 1 . 1 . . . . 4 . . . 1 . . 3 . . . . 1 . . . 1 1 Feedback Events 1 | . . . . . . . . . . 1 . . . . . . . . . . . . . . . . . . . . . . . . Corruption 1 | . . . . . . . . . . 1 . . . . . . . . . . . . . . . . . . . . . . . . Feedback Blocked . | . . . . . . . . . . . . . . . . . . . . . . . . . . . . . . . . . . . Robot Schematics Acquired 1 | . . . . . . . . . . . . . . . . . 1 . . . . . . . . . . . . . . . . . Robots Built 4 | . . . . . . . . . . 3 . . . . . . . . . . . . . . . . . . 1 . . . . . Authchips 1 | . . . . . . . . . . . . . . . . . . . . . . . . . . . . . 1 . . . . . Time 242 | . . . . . . . . . . 215 . . . . . . . . . . . . . . . . . . 27 . . . . . Total Robot Build Rating 10 | . . . . . . . . . . 9 . . . . . . . . . . . . . . . . . . 1 . . . . . Part Schematics Acquired 18 | . . . . . . . . . . 2 . . . . . . . . . . . . . 4 . . 4 . . 6 . . 2 . Parts Built 2 | . . . . . . . . . . . . . . . . . . . . . . . . 2 . . . . . . . . . . Authchips . | . . . . . . . . . . . . . . . . . . . . . . . . . . . . . . . . . . . Time 148 | . . . . . . . . . . . . . . . . . . . . . . . . 148 . . . . . . . . . . Total Part Build Rating 15 | . . . . . . . . . . . . . . . . . . . . . . . . 15 . . . . . . . . . . Parts Repaired 11 | . 1 . 3 . . . . . . 1 . 1 . . . . 1 . . . . . . 1 . . . . . 1 . . 2 . Time 556 | . 26 . 166 . . . . . . 32 . 31 . . . . 49 . . . . . . 108 . . . . . 54 . . 90 . Parts Recycled . | . . . . . . . . . . . . . . . . . . . . . . . . . . . . . . . . . . . Recycled Matter . | . . . . . . . . . . . . . . . . . . . . . . . . . . . . . . . . . . . Retrieved Matter . | . . . . . . . . . . . . . . . . . . . . . . . . . . . . . . . . . . . Retrieved Components 10 | . . . . . . . 10 . . . . . . . . . . . . . . . . . . . . . . . . . . . Parts Scanalyzed 7 | . . . 1 . . . . . . 1 . . . . . . . . . . . . . 5 . . . . . . . . . . Part Schematics Acquired 6 | . . . . . . . . . . 2 . . . . . . . . . . . . . 4 . . . . . . . . . . Parts Damaged 2 | . . . 1 . . . . . . 1 . . . . . . . . . . . . . . . . . . . . . . . . Bothacking | -11 -10 -10 -9 -9 -9 -8 -8 -7 -7 -7 -7 -6 -6 -6 -6 -5 -5 -5 -5 -5 -5 -4 -4 -4 -4 -4 -4 -3 -3 -3 -3 -2 -2 -1 ------------ Run | Yrd Mat Min Mat Min Exi Min Mat Fac Was Fac Gar Fac Low Low Zio Pro Fac Ext Cet Arc Hub Fac Was Fac Upp Upp Zhi Pro Res Qua Sec Res Tes Acc Used RIF Installer . | . . . . . . . . . . . . . . . . . . . . . . . . . . . . . . . . . . . Robots Hacked . | . . . . . . . . . . . . . . . . . . . . . . . . . . . . . . . . . . . Non-combat . | . . . . . . . . . . . . . . . . . . . . . . . . . . . . . . . . . . . Combat . | . . . . . . . . . . . . . . . . . . . . . . . . . . . . . . . . . . . Robot Hacks Applied . | . . . . . . . . . . . . . . . . . . . . . . . . . . . . . . . . . . . Relay Couplers Released 3 | . . . . . . . . . . 3 . . . . . . . . . . . . . . . . . . . . . . . . Programmers 3 | . . . . . . . . . . 3 . . . . . . . . . . . . . . . . . . . . . . . . Fabnet Peak Effective % . | . . . . . . . . . . . . . . . . . . . . . . . . . . . . . . . . . . . Robots Rewired 4 | . . . . . . . . . . . . . . . . . . 2 . . . . . . . . . . . . . . 2 . Allies Hacked 5 | . . . . . . . . . . 3 . . . . . . . 1 . . . . . 1 . . . . . . . . . . Hacks Repelled 1 | . . . . . . . . . . 1 . . . . . . . . . . . . . . . . . . . . . . . . Allies | -11 -10 -10 -9 -9 -9 -8 -8 -7 -7 -7 -7 -6 -6 -6 -6 -5 -5 -5 -5 -5 -5 -4 -4 -4 -4 -4 -4 -3 -3 -3 -3 -2 -2 -1 -------- Run | Yrd Mat Min Mat Min Exi Min Mat Fac Was Fac Gar Fac Low Low Zio Pro Fac Ext Cet Arc Hub Fac Was Fac Upp Upp Zhi Pro Res Qua Sec Res Tes Acc Total Allies 66 | . . 3 . 1 . . 1 . 19 5 . . . . . . . 10 . . 1 . 19 4 . . . . 1 . . . 2 . Largest Group 19 | . . 3 3 1 . . 1 . 19 17 . . . . . . . 6 5 . 1 . 19 17 . . . . 1 1 . . 1 . Highest-Rated Group 702 | . . 40 40 31 . . 26 . 465 394 . . . . . . . 159 125 . 10 . 702 602 . . . . 14 14 . . 114 . Highest-Rated Ally 159 | . . 16 16 31 . . 26 . 35 37 . . . . . . . 159 25 . 10 . 50 49 . . . . 14 14 . . 114 . Total Orders 23 | . . . . . . . 1 . . 1 . . . . . . . . . . 3 . . . . . . . 6 11 . . 1 . STAY 12 | . . . . . . . 1 . . . . . . . . . . . . . 3 . . . . . . . 2 6 . . . . ROAM 1 | . . . . . . . . . . . . . . . . . . . . . . . . . . . . . . . . . 1 . FOLLOW 3 | . . . . . . . . . . . . . . . . . . . . . . . . . . . . . 2 1 . . . . AID 6 | . . . . . . . . . . . . . . . . . . . . . . . . . . . . . 2 4 . . . . EXPLORE 1 | . . . . . . . . . . 1 . . . . . . . . . . . . . . . . . . . . . . . . Ally Attacks 423 | . . . 18 32 . . . . . 120 . . . . . . . 36 2 . . . . 176 . . . . . . . . 39 . Total Damage 9696 | . . . 149 311 . . . . . 2224 . . . . . . . 764 72 . . . . 4129 . . . . . . . . 2047 . Kills 67 | . . . 4 3 . . . . . 17 . . . . . . . 4 1 . . . . 29 . . . . . . . . 9 . Allies Corrupted 3 | . . . . . . . . . 1 . . . . . . . . . . . . . . 2 . . . . . . . . . . Allies Melted . | . . . . . . . . . . . . . . . . . . . . . . . . . . . . . . . . . . . Intel | -11 -10 -10 -9 -9 -9 -8 -8 -7 -7 -7 -7 -6 -6 -6 -6 -5 -5 -5 -5 -5 -5 -4 -4 -4 -4 -4 -4 -3 -3 -3 -3 -2 -2 -1 ------- Run | Yrd Mat Min Mat Min Exi Min Mat Fac Was Fac Gar Fac Low Low Zio Pro Fac Ext Cet Arc Hub Fac Was Fac Upp Upp Zhi Pro Res Qua Sec Res Tes Acc Robot Analysis Total 9 | . 2 . 3 . . . . . . . . . . . . . . . . . . . . . . . 4 . . . . . . . Derelict Logs Recovered 10 | . . 2 . 1 . . . . . . . . 3 . 1 . . . . . . . . . 1 2 . . . . . . . . Drone Launches 4 | . . . . . . . . . . 1 . . . . . . . . . . 3 . . . . . . . . . . . . . Drone Recoveries . | . . . . . . . . . . . . . . . . . . . . . . . . . . . . . . . . . . . Exploration | -11 -10 -10 -9 -9 -9 -8 -8 -7 -7 -7 -7 -6 -6 -6 -6 -5 -5 -5 -5 -5 -5 -4 -4 -4 -4 -4 -4 -3 -3 -3 -3 -2 -2 -1 ------------- Run | Yrd Mat Min Mat Min Exi Min Mat Fac Was Fac Gar Fac Low Low Zio Pro Fac Ext Cet Arc Hub Fac Was Fac Upp Upp Zhi Pro Res Qua Sec Res Tes Acc Turns Passed 55985 | 78 1286 907 3783 1075 578 1057 4300 662 1609 3532 1696 2030 1690 1789 2182 571 2022 2654 617 156 3254 860 1811 2778 1056 1011 313 1627 649 3346 871 815 1790 1530 Spaces Moved 21206 | 45 637 551 1338 395 235 410 1580 258 551 1015 582 661 664 649 886 217 642 882 280 38 1057 325 567 898 406 407 175 694 271 1413 342 421 854 860 Core 337 | 3 . . . . . . . . . . . . . . . . . . . . . . . . . . . . . . . . . 334 Treads 20849 | 42 637 551 1338 395 235 410 1580 258 551 1015 580 661 664 649 886 217 642 882 280 38 1057 325 567 898 406 407 175 694 271 1413 342 421 854 508 Legs . | . . . . . . . . . . . . . . . . . . . . . . . . . . . . . . . . . . . Wheels 2 | . . . . . . . . . . . 2 . . . . . . . . . . . . . . . . . . . . . . . Hover . | . . . . . . . . . . . . . . . . . . . . . . . . . . . . . . . . . . . Flight . | . . . . . . . . . . . . . . . . . . . . . . . . . . . . . . . . . . . Fastest Speed 50 | 50 160 160 160 240 240 240 240 243 163 305 247 239 249 245 245 245 245 242 160 160 160 240 240 160 160 240 160 160 155 155 155 155 146 50 Average Speed 223 | 152 160 160 242 240 240 240 240 243 274 320 275 244 252 254 245 245 247 245 182 235 229 240 240 239 236 240 160 214 186 174 156 155 152 107 Slowest Speed 323 | 160 160 160 320 240 240 240 243 243 323 323 310 270 256 256 245 245 249 247 243 240 240 240 320 240 240 240 160 240 240 240 160 155 155 170 Overloaded Moves . | . . . . . . . . . . . . . . . . . . . . . . . . . . . . . . . . . . . Propulsion Burnouts . | . . . . . . . . . . . . . . . . . . . . . . . . . . . . . . . . . . . Robots Hopped . | . . . . . . . . . . . . . . . . . . . . . . . . . . . . . . . . . . . Cave-ins Triggered . | . . . . . . . . . . . . . . . . . . . . . . . . . . . . . . . . . . . Teleports 1 | . . . . . . . . . . . . . . . . . . . . . . . . . . . . . . . 1 . . . Spacefolds 8 | . . . . . . . . . . . . . . . . . . . . . . . . . . . . . . . . . . 8 Exploration Rate (%) 59 | 5 95 90 98 60 60 89 99 7 96 40 63 21 86 77 79 43 23 84 57 55 90 7 96 24 73 68 60 89 12 93 24 15 91 28 Regions Visited 34 Branch Regions 19 Pre-discovered Areas 14 | . 1 2 2 1 1 . . . . . . . 1 . 2 . . . . . . . . . . 1 3 . . . . . . . Known Exits Taken 13 | . . . . . . . . . . 1 . 1 . . . . 1 . . . . . . 1 1 1 1 1 1 1 1 1 1 . Unknown Exits Taken 16 | 1 1 1 1 1 1 1 1 . . . . . 1 1 1 1 . 1 1 1 1 . . . . . . . . . . . . . Scrap Searched 18 | . . 2 . 1 . 1 . . . . . . 4 2 2 . . . . . . . . . 2 3 . 1 . . . . . . Spaces Dug 96 | . . . . 24 . 2 3 . . 2 . 1 . 8 . . 9 . . . 18 . . 12 . 8 . . 3 . . 5 . 1 Terrain Destroyed 1200 | . 17 . 22 91 . 2 3 . 5 29 14 49 . 59 . . 23 25 5 5 232 14 6 172 10 8 . 17 10 98 121 10 28 125 Melee 36 | . . . . . . 2 3 . . 2 . 1 . 1 . . 6 . . . 9 . . 4 . . . . 2 . . 5 . 1 Projectile 452 | . . . . . . . . . 5 7 14 2 . . . . 5 24 5 5 62 14 6 101 10 8 . 17 7 93 20 3 22 22 AOE 683 | . 17 . 22 91 . . . . . 20 . 46 . 58 . . 12 . . . 161 . . 67 . . . . . . 99 . . 90 Terrain Rammed . | . . . . . . . . . . . . . . . . . . . . . . . . . . . . . . . . . . . Walls Destroyed . | . . . . . . . . . . . . . . . . . . . . . . . . . . . . . . . . . . . Machines Disabled . | . . . . . . . . . . . . . . . . . . . . . . . . . . . . . . . . . . . Actions | -11 -10 -10 -9 -9 -9 -8 -8 -7 -7 -7 -7 -6 -6 -6 -6 -5 -5 -5 -5 -5 -5 -4 -4 -4 -4 -4 -4 -3 -3 -3 -3 -2 -2 -1 --------- Run | Yrd Mat Min Mat Min Exi Min Mat Fac Was Fac Gar Fac Low Low Zio Pro Fac Ext Cet Arc Hub Fac Was Fac Upp Upp Zhi Pro Res Qua Sec Res Tes Acc Total 27123 | 51 788 565 1681 451 252 453 1843 276 636 1292 664 894 670 723 900 238 906 1220 365 95 1606 372 942 1361 473 426 211 779 378 2101 560 535 1217 1199 Wait 3409 | . 48 3 166 8 . 25 85 3 12 243 39 94 1 21 . 7 132 182 9 46 355 23 311 336 43 3 14 63 63 511 135 69 235 124 Move 21163 | 44 636 550 1337 394 234 409 1579 258 550 1015 579 660 663 648 885 216 641 881 279 37 1056 325 566 897 405 406 174 693 270 1412 341 420 853 850 Hop . | . . . . . . . . . . . . . . . . . . . . . . . . . . . . . . . . . . . Pick Up 225 | 1 12 . 25 2 4 . 12 . 29 3 6 12 . . 6 2 11 17 14 . 7 1 3 14 1 1 2 . 3 9 1 4 10 13 Fast Attach 135 | 6 5 1 5 . 1 . 6 2 2 3 3 5 . . 2 . 6 6 7 2 9 . 4 7 4 . 10 . 3 17 1 1 9 8 Attach 96 | . 1 . 2 . 2 1 5 2 3 3 4 7 . 3 2 . 5 5 1 . 4 3 2 4 . . . . 4 4 3 4 1 21 Detach 45 | . 2 1 . . 1 . 4 1 1 3 2 1 . . 1 . . 2 2 . 2 . 3 4 1 . 1 . 1 2 3 2 2 3 Swap 331 | . 8 . 22 7 3 2 19 . 3 8 5 16 3 9 . 2 23 21 11 4 26 2 14 12 4 . . 6 11 29 10 7 16 28 Drop 291 | . 9 1 25 3 7 1 17 1 13 8 10 10 . . 4 1 14 28 25 2 9 1 6 16 2 1 10 . 5 25 2 1 17 17 Fire 1179 | . 64 5 89 32 . 10 105 9 19 . 7 82 3 32 . 10 58 55 17 4 115 15 16 57 7 3 . 15 11 79 60 15 55 130 Melee 103 | . . . . . . 2 3 . 4 5 1 1 . 1 . . 7 4 . . 10 . 17 4 6 . . 2 6 11 2 9 7 1 Ram 1 | . . . . . . . . . . . . . . . . . . . . . . . . . . . . . . . . . . 1 Kick . | . . . . . . . . . . . . . . . . . . . . . . . . . . . . . . . . . . . Crush 92 | . 3 4 10 5 . 3 8 . . . . 4 . 1 . . 7 5 . . 13 1 . 8 . 6 . . 1 2 2 3 4 2 Escape Stasis 21 | . . . . . . . . . . . 8 2 . . . . 2 6 . . . . . 2 . . . . . . . . . 1 Rewire 18 | . . . . . . . . . . 1 . . . . . . . 8 . . . 1 . . . . . . . . . . 8 . Trap 14 | . . . . . . . . . . . . . . 8 . . . . . . . . . . . 6 . . . . . . . . Miscellaneous . | . . . . . . . . . . . . . . . . . . . . . . . . . . . . . . . . . . . Route ------- -11/Scrapyard -10/Materials (discovered 5 exits: *Mat x3 / [*Min x2]) -10/Mines (discovered 2 exits: *Mat x2) -9/Materials (discovered 6 exits: *Mat x3 / [*Min x2] / [*Sto]) -9/Mines (discovered 3 exits: *Mat x2 / *Exi) -9/Exiles -8/Mines -8/Materials (discovered 3 exits: *Fac x3) -7/Factory -7/Waste -7/Factory (discovered 4 exits: *Fac x2 / [*Low] / Gar) -7/Garrison (discovered 3 exits: *Fac x3) -6/Factory (discovered 3 exits: *Fac / *Low x2) -6/Lower Caves -6/Lower Caves (discovered 2 exits: *Fac / [*Zio]) -6/Zion -5/Proximity Caves -5/Factory (discovered 5 exits: [*Fac] / Upp x2 / *Ext x2) -5/Extension (discovered 2 exits: [*Fac] / [*Cet]) -5/Cetus (discovered 2 exits: [*Fac] / [*Arc]) -5/Archives -5/Hub_04(d) (discovered 4 exits: [*Fac x4]) -4/Factory -4/Waste -4/Factory (discovered 3 exits: *Upp x2 / Arm) -4/Upper Caves -4/Upper Caves (discovered 2 exits: *Res / *Zhi) -4/Zhirov -3/Proximity Caves -3/Research (discovered 2 exits: *Qua x2) -3/Quarantine (discovered 2 exits: *Res / *Sec) -3/Section 7 -2/Research (discovered 4 exits: Acc x3 / *Tes) -2/Testing -1/Access History --------- Turn | Location | Event 47 | -11/Scrapyard | Discovered new exit (range 15) 79 | -11/Scrapyard | Entered Materials 132 | -10/Materials | Central database locked down 261 | -10/Materials | Discovered new exit (range 10) 318 | -10/Materials | Discovered new exit (range 14) 324 | -10/Materials | Build established: Mutant 436 | -10/Materials | Repaired Lgt. Assault Rifle 567 | -10/Materials | Discovered new exit (range 16) 914 | -10/Materials | Core integrity fell below 50% 958 | -10/Materials | Destroyed 8 combat bots 995 | -10/Materials | Core integrity fell below 20% 1089 | -10/Materials | Discovered new exit (range 8) 1250 | -10/Materials | Discovered new exit (range 11) 1365 | -10/Materials | Entered Mines 1388 | -10/Mines | Learned location of Storage (-9) 1440 | -10/Mines | Found a hidden stash of uninstalled traps 1466 | -10/Mines | Discovered new exit (range 8) 1659 | -10/Mines | Discovered new exit (range 15) 1803 | -10/Mines | Learned 2 Materials zone layouts 1943 | -10/Mines | Found a damaged Exp. Sensor Array with a note attached 1947 | -10/Mines | Found Prototype Device 1947 | -10/Mines | Identified Exp. Sensor Array 2253 | -10/Mines | Assisted by bots powering up and referring to "LRC-V3" 2272 | -10/Mines | Entered Materials 2272 | -9/Materials | Accompanied by 3 allies 2272 | -9/Materials | Evolved 2 slots: Utility x1, Weapon x1 2392 | -9/Materials | Repaired Exp. Sensor Array 2725 | -9/Materials | Build established: Tank 2783 | -9/Materials | Repaired Shield Generator 2885 | -9/Materials | Repaired Assault Rifle 3096 | -9/Materials | Central database locked down 3321 | -9/Materials | Discovered new exit (range 9) 3366 | -9/Materials | Discovered new exit (range 3) 3736 | -9/Materials | Build established: Scavenger-Tank 3874 | -9/Materials | Discovered new exit (range 15) 4109 | -9/Materials | Build established: Tank 4863 | -9/Materials | Discovered new exit (range 4) 4940 | -9/Materials | Discovered new exit (range 10) 5578 | -9/Materials | Discovered new exit (range 14) 6055 | -9/Materials | Entered Mines 6267 | -9/Mines | Discovered new exit (range 16) 6366 | -9/Mines | Escorted by a lone wolf Derelict 6407 | -9/Mines | Build established: Scavenger-Tank 6481 | -9/Mines | Received a Rocket Launcher from a helpful Derelict 6692 | -9/Mines | Discovered new exit (range 6) 6904 | -9/Mines | Learned Materials emergency access door positions 7015 | -9/Mines | Assembled infested the area 7020 | -9/Mines | Assisted by a Guerilla fighting off Assembled 7088 | -9/Mines | Destroyed 11 combat bots 7120 | -9/Mines | Deemed a non-threat by the Exiles lab entrance 7120 | -9/Mines | Discovered new exit (range 5) 7130 | -9/Mines | Entered Exiles 7130 | -9/Exiles | Accompanied by 1 ally 7190 | -9/Exiles | Met 8R-AWN 7232 | -9/Exiles | Met EX-HEX 7297 | -9/Exiles | Met EX-BIN 7327 | -9/Exiles | Build established: Tank 7328 | -9/Exiles | Aligned with FarCom system 7330 | -9/Exiles | Given EX-Vault access code 7385 | -9/Exiles | Opened EX-Vault 7403 | -9/Exiles | Found Supersonic Drone Bay 7413 | -9/Exiles | Found Chronowheel 7417 | -9/Exiles | Found AWS/Autocannon 7514 | -9/Exiles | Warned to stay clear of 0b10 Research branches 7586 | -9/Exiles | Met EX-DEC 7595 | -9/Exiles | Learned location of Zion (-6) 7684 | -9/Exiles | Discovered new exit (range 12) 7708 | -9/Exiles | Stole three prototypes: Supersonic Drone Bay, Chronowheel, AWS/Autocannon 7708 | -9/Exiles | Entered Mines 8243 | -8/Mines | Discovered new exit (range 11) 8765 | -8/Mines | Entered Materials 8765 | -8/Materials | Evolved 2 slots: Propulsion x1, Utility x1 10106 | -8/Materials | Discovered new exit (range 11) 11640 | -8/Materials | Discovered new exit (range 3) 12499 | -8/Materials | Discovered new exit (range 8) 12535 | -8/Materials | Build established: Skirmisher 13065 | -8/Materials | Entered Factory 13065 | -7/Factory | Evolved 2 slots: Utility x1, Weapon x1 13067 | -7/Factory | FarCom data flow suspended 13363 | -7/Factory | Build established: Gunner 13727 | -7/Factory | Sucked down chute 13727 | -7/Factory | Entered Waste 13789 | -7/Waste | Spotted C-40 Crusher 13805 | -7/Waste | Spotted C-40 Crusher 13806 | -7/Waste | Destroyed C-40 Crusher 13816 | -7/Waste | Destroyed C-40 Crusher 13832 | -7/Waste | Spotted C-40 Crusher 13838 | -7/Waste | Destroyed C-40 Crusher 13872 | -7/Waste | Spotted C-40 Crusher 13892 | -7/Waste | Destroyed C-40 Crusher 13899 | -7/Waste | Spotted C-40 Crusher 13902 | -7/Waste | Spotted C-40 Crusher 13904 | -7/Waste | Destroyed C-40 Crusher 13908 | -7/Waste | Destroyed C-40 Crusher 13984 | -7/Waste | Warlord forces began an assault 14668 | -7/Waste | Discovered new exit (range 12) 15336 | -7/Waste | Entered Factory 15336 | -7/Factory | Accompanied by 17 allies 15592 | -7/Factory | Lost 9 allies 15700 | -7/Factory | Fabricated P-60 Hacker? 15876 | -7/Factory | Fabricated K-01 Serf? 16183 | -7/Factory | Discovered new exit (range 14) 16235 | -7/Factory | Hacker 4b assimilated hostile G-47 Trooper 16249 | -7/Factory | Discovered new exit (range 9) 16284 | -7/Factory | Lost 4 allies 16713 | -7/Factory | Repaired Imp. Treads 16729 | -7/Factory | Hacker 4b assimilated hostile G-47 Trooper 17765 | -7/Factory | Discovered new exit (range 15) 18671 | -7/Factory | Identified exit to Garrison 18868 | -7/Factory | Entered Garrison 18926 | -7/Garrison | Triggered checkpoint 19190 | -7/Garrison | Triggered checkpoint 19224 | -7/Garrison | Triggered checkpoint 19238 | -7/Garrison | Destroyed 9 combat bots 19334 | -7/Garrison | Triggered checkpoint 19400 | -7/Garrison | Triggered checkpoint 19530 | -7/Garrison | Learned Factory security intel 19832 | -7/Garrison | Discovered new exit (range 9) 19852 | -7/Garrison | Attempted to access garrison exit controls, blocked by remote lockdown 20081 | -7/Garrison | Discovered new exit (range 11) 20126 | -7/Garrison | Triggered checkpoint 20315 | -7/Garrison | Build established: Derelict-Gunner 20342 | -7/Garrison | Attempted to access garrison exit controls, blocked by remote lockdown 20510 | -7/Garrison | Discovered new exit (range 12) 20564 | -7/Garrison | Entered Factory 20564 | -6/Factory | Evolved 2 slots: Propulsion x1, Utility x1 20819 | -6/Factory | Discovered new exit (range 13) 20846 | -6/Factory | Identified exit to Lower Caves 21264 | -6/Factory | First assault squad dispatched 21458 | -6/Factory | Repaired Hvy. Siege Treads 21763 | -6/Factory | Build established: Gunner 21848 | -6/Factory | Lost 3 parts (1n1u1w) 22594 | -6/Factory | Entered Lower Caves 22600 | -6/Lower Caves | Met a Warlord Commander 22601 | -6/Lower Caves | Learned location of Warlord (-5) 22602 | -6/Lower Caves | Warlord Commander delivered Encrypted Comm Array 22979 | -6/Lower Caves | Build established: Tank 23033 | -6/Lower Caves | Learned Factory trap positions 23257 | -6/Lower Caves | Learned Factory terminal intel 23841 | -6/Lower Caves | Learned Factory trap positions 23867 | -6/Lower Caves | Encountered a Warlord checkpoint 24040 | -6/Lower Caves | Discovered new exit (range 3) 24284 | -6/Lower Caves | Entered another Lower Caves area 24410 | -6/Lower Caves | Discovered new exit (range 14) 24626 | -6/Lower Caves | Attacked by a faux Warlord 25808 | -6/Lower Caves | Spotted MG-R2C(f) 25809 | -6/Lower Caves | Spotted Q6-39J(f) 25809 | -6/Lower Caves | Spotted 60-TEC(f) 25810 | -6/Lower Caves | Encountered a Master Thief 25810 | -6/Lower Caves | Encountered a Master Thief 25810 | -6/Lower Caves | Encountered a Master Thief 25810 | -6/Lower Caves | Spotted 8Q-RSL(f) 25811 | -6/Lower Caves | Encountered a Master Thief 25813 | -6/Lower Caves | Spotted Q0-AQ0(f) 25813 | -6/Lower Caves | Chronowheel stolen by Master Thief 25813 | -6/Lower Caves | Exp. Sensor Array stolen by Master Thief 25814 | -6/Lower Caves | Encountered a Master Thief 25814 | -6/Lower Caves | Destroyed 60-TEC(f) 25814 | -6/Lower Caves | Antimatter Reactor stolen by Master Thief 25818 | -6/Lower Caves | Destroyed Q6-39J(f) 25819 | -6/Lower Caves | Hvy. Siege Treads stolen by Master Thief 26014 | -6/Lower Caves | Discovered new exit (range 10) 26073 | -6/Lower Caves | Entered Zion 26162 | -6/Zion | Acquired unknown access codes intercepted by a Zionite 26167 | -6/Zion | Discovered new exit (range 9) 26292 | -6/Zion | Given the Hacking Drone Bay 26316 | -6/Zion | Found Prototype Device 26872 | -6/Zion | Found CR-A16's Pointy Stick 27233 | -6/Zion | Loaded intel: 4 derelict terminal locations 27404 | -6/Zion | Learned 4 Factory zone layouts 27525 | -6/Zion | Found Prototype Device 27525 | -6/Zion | Identified Bomb Factory No. 2 27614 | -6/Zion | Given A8's code to call for help 28255 | -6/Zion | Entered Proximity Caves 28573 | -5/Proximity Caves | Attracted the attention of an 0b10 checkpoint 28750 | -5/Proximity Caves | Discovered new exit (range 7) 28826 | -5/Proximity Caves | Entered Factory 28826 | -5/Factory | Evolved 2 slots: Power x1, Weapon x1 28828 | -5/Factory | Loaded intel: 97 trap records 28829 | -5/Factory | Loaded intel: 28 terminal locations 29539 | -5/Factory | Identified exit to Upper Caves 29539 | -5/Factory | Identified exit to Extension 29629 | -5/Factory | Build established: Scavenger-Tank 29676 | -5/Factory | Discovered new exit (range 16) 29968 | -5/Factory | Repaired Exp. Cooling System? 30626 | -5/Factory | First assault squad dispatched 30848 | -5/Factory | Entered Extension 30953 | -5/Extension | Identified Hacking Drone Bay 31356 | -5/Extension | Rescued A7 31444 | -5/Extension | Murdered A7 31444 | -5/Extension | Destroyed A7 31445 | -5/Extension | Extracted ID and sensor layout for unrecognized location from A7's data core 31450 | -5/Extension | Found Prototype Protection 31450 | -5/Extension | Identified Med. Regenerative Plating 31738 | -5/Extension | Build established: Scavenger-Gunner 31798 | -5/Extension | Disrupted transfer network 32150 | -5/Extension | Rescued a captive Derelict 32151 | -5/Extension | Rescued a captive Derelict 32408 | -5/Extension | P-70 Sage assimilated allied MG-VMD(g) 32514 | -5/Extension | Spotted B-75 Beast 32528 | -5/Extension | Destroyed B-75 Beast 32549 | -5/Extension | Spotted B-75 Beast 32560 | -5/Extension | Destroyed B-75 Beast 32730 | -5/Extension | Rescued a captive Derelict 32866 | -5/Extension | Rescued a captive Derelict 32887 | -5/Extension | Rescued a captive Derelict 32888 | -5/Extension | Rescued a captive Derelict 32929 | -5/Extension | Rescued a captive Derelict 33452 | -5/Extension | Discovered new exit (range 10) 33455 | -5/Extension | Discovered new exit (range 6) 33502 | -5/Extension | Entered Cetus 33502 | -5/Cetus | Accompanied by 5 allies 33534 | -5/Cetus | Spotted Cetus Guard 33534 | -5/Cetus | Spotted Cetus Guard 33540 | -5/Cetus | Spotted Cetus Guard 33548 | -5/Cetus | Allies destroyed Cetus Guard 33551 | -5/Cetus | Spotted Cetus Guard 33561 | -5/Cetus | Destroyed Cetus Guard 33570 | -5/Cetus | Destroyed Cetus Guard 33570 | -5/Cetus | Destroyed Cetus Guard 33583 | -5/Cetus | Lost 5 allies 33753 | -5/Cetus | Discovered new exit (range 15) 33940 | -5/Cetus | Spotted Cetus Guard 33941 | -5/Cetus | Spotted Cetus Guard 33944 | -5/Cetus | Spotted Cetus Guard 33948 | -5/Cetus | Destroyed Cetus Guard 33951 | -5/Cetus | Destroyed Cetus Guard 33952 | -5/Cetus | Spotted Cetus Guard 33954 | -5/Cetus | Destroyed Cetus Guard 33972 | -5/Cetus | Discovered new exit (range 15) 33980 | -5/Cetus | Met Revision 17 34119 | -5/Cetus | Entered Archives 34241 | -5/Archives | Met Zhirov 34241 | -5/Archives | Discovered new exit (range 13) 34247 | -5/Archives | Reinforcements dispatched to Archives 34275 | -5/Archives | Entered Hub_04(d) 34520 | -5/Hub_04(d) | Garrison activated, responded to threat 35468 | -5/Hub_04(d) | Discovered new exit (range 15) 36086 | -5/Hub_04(d) | Discovered new exit (range 15) 36686 | -5/Hub_04(d) | Discovered new exit (range 11) 37073 | -5/Hub_04(d) | Discovered new exit (range 9) 37275 | -5/Hub_04(d) | First assault squad dispatched 37313 | -5/Hub_04(d) | Network Hub disabled 37422 | -5/Hub_04(d) | Network Hub disabled 37525 | -5/Hub_04(d) | Spotted Lightning 37528 | -5/Hub_04(d) | System corruption reached 10% 37528 | -5/Hub_04(d) | Spotted Lightning 37529 | -5/Hub_04(d) | Entered Factory 37529 | -4/Factory | Evolved 2 slots: Utility x1, Weapon x1 37530 | -4/Factory | Loaded intel: 93 trap records 37711 | -4/Factory | Discovered new exit (range 6) 37779 | -4/Factory | First assault squad dispatched 37834 | -4/Factory | Build established: Scavenger-Executioner 38389 | -4/Factory | Sucked down chute 38389 | -4/Factory | Entered Waste 38410 | -4/Waste | Spotted C-40 Crusher 38502 | -4/Waste | Spotted C-40 Crusher 38506 | -4/Waste | Destroyed C-40 Crusher 38628 | -4/Waste | Spotted C-40 Crusher 38632 | -4/Waste | Destroyed C-40 Crusher 38653 | -4/Waste | Destroyed C-40 Crusher 38691 | -4/Waste | Spotted C-40 Crusher 38698 | -4/Waste | Destroyed C-40 Crusher 38702 | -4/Waste | Spotted C-40 Crusher 38716 | -4/Waste | Destroyed C-40 Crusher 38739 | -4/Waste | Spotted C-40 Crusher 38743 | -4/Waste | Destroyed C-40 Crusher 38865 | -4/Waste | Found Prototype Device 38865 | -4/Waste | Identified Exp. Cloaking Device 39029 | -4/Waste | Warlord forces began an assault 39191 | -4/Waste | Discovered new exit (range 12) 39783 | -4/Waste | Found Broken Adv. Powered Armor 40200 | -4/Waste | Entered Factory 40200 | -4/Factory | Accompanied by 17 allies 40617 | -4/Factory | Lost 8 allies 40948 | -4/Factory | Fabricated Exp. Sensor Array (x1) 41046 | -4/Factory | Lost 7 allies 41196 | -4/Factory | Repaired Centrium Heavy Treads 41640 | -4/Factory | Identified exit to Upper Caves 41640 | -4/Factory | Identified exit to Armory 41815 | -4/Factory | Fabricated Adv. KE Penetrator (x1) 42109 | -4/Factory | Found Prototype Processor 42316 | -4/Factory | Identified Exp. Targeting Computer 42678 | -4/Factory | Cargo convoy interrupted 42680 | -4/Factory | Spotted Executioner 42688 | -4/Factory | Destroyed Executioner 42763 | -4/Factory | Destroyed 18 combat bots 42766 | -4/Factory | Found Prototype Launcher 42766 | -4/Factory | Identified Adv. Micro-nuke Launcher 42772 | -4/Factory | Found Prototype Processor 42772 | -4/Factory | Identified Exp. Signal Interpreter 42978 | -4/Factory | Entered Upper Caves 42978 | -4/Upper Caves | Spotted EO-825(f) 42978 | -4/Upper Caves | Spotted 6N-5HC(f) 42979 | -4/Upper Caves | Quantum Reactor stolen by Master Thief 42979 | -4/Upper Caves | Destroyed EO-825(f) 42980 | -4/Upper Caves | Encountered a Master Thief 42981 | -4/Upper Caves | Quantum Reactor stolen by Master Thief 42983 | -4/Upper Caves | Destroyed 6N-5HC(f) 43029 | -4/Upper Caves | Learned 4 Research zone layouts 43232 | -4/Upper Caves | Encountered a Warlord checkpoint 43385 | -4/Upper Caves | Spotted B-86 Titan 43402 | -4/Upper Caves | Revealed the true nature of CR-A16's Pointy Stick 43406 | -4/Upper Caves | Destroyed B-86 Titan 44003 | -4/Upper Caves | Discovered new exit (range 13) 44025 | -4/Upper Caves | Identified exit to Upper Caves 44034 | -4/Upper Caves | Entered another Upper Caves area 44150 | -4/Upper Caves | Discovered new exit (range 10) 44183 | -4/Upper Caves | Identified exit to Research 44241 | -4/Upper Caves | Learned Research stockpile data 44602 | -4/Upper Caves | Learned location of Testing (-2) 44968 | -4/Upper Caves | Discovered new exit (range 13) 44997 | -4/Upper Caves | Identified exit to Zhirov 45045 | -4/Upper Caves | Entered Zhirov 45048 | -4/Zhirov | Discovered new exit (range 4) 45114 | -4/Zhirov | Learned location of Quarantine (-3) 45114 | -4/Zhirov | Learned location of Command (-1) 45172 | -4/Zhirov | Found Alien Artifact 45172 | -4/Zhirov | Identified Integrated Dissipator 45172 | -4/Zhirov | Installed Integrated Dissipator, increased core heat dissipation (+20) 45201 | -4/Zhirov | Found Alien Artifact 45310 | -4/Zhirov | Identified exit to Proximity Caves 45358 | -4/Zhirov | Entered Proximity Caves 46378 | -3/Proximity Caves | Attracted the attention of an 0b10 checkpoint 46822 | -3/Proximity Caves | Discovered exit to Research (range 13) 46985 | -3/Proximity Caves | Entered Research 46985 | -3/Research | Evolved 2 slots: Propulsion x1, Utility x1 46986 | -3/Research | Identified exit to Quarantine 47077 | -3/Research | Spotted B-86 Titan 47082 | -3/Research | Destroyed B-86 Titan 47185 | -3/Research | Revision forces began assault on 0b10 47224 | -3/Research | Met up with Revision 17++ 47368 | -3/Research | Fabricated M-13 Machinist (x1) 47634 | -3/Research | Entered Quarantine 47634 | -3/Quarantine | Accompanied by 1 ally 47815 | -3/Quarantine | Found Alien Impact Weapon 47926 | -3/Quarantine | Found Alien Artifact 48880 | -3/Quarantine | Found Alien Artifact 49228 | -3/Quarantine | Scanned by Researcher 49278 | -3/Quarantine | Found Alien Artifact 49278 | -3/Quarantine | Identified Phase Redirector 49391 | -3/Quarantine | Spotted Alpha 7 49424 | -3/Quarantine | Destroyed Alpha 7 49481 | -3/Quarantine | Cryocooling Duct disabled 49496 | -3/Quarantine | Ambient heat levels rising (+20) 49496 | -3/Quarantine | Non-combat units ordered to evacuate 49608 | -3/Quarantine | Identified Subatomic Replicator 49608 | -3/Quarantine | Identified Core Reset Matrix 49608 | -3/Quarantine | Identified Transdimensional Reconstructor 49608 | -3/Quarantine | Identified Core Stripper 49731 | -3/Quarantine | Found Prototype Device 49731 | -3/Quarantine | Identified Adv. Kinecellerator 49745 | -3/Quarantine | Found Prototype Device 49745 | -3/Quarantine | Identified Exp. Focal Shield 50393 | -3/Quarantine | Repaired Centrium Heavy Treads? 50462 | -3/Quarantine | Discovered new exit (range 8) 50765 | -3/Quarantine | Spotted Fortress 50797 | -3/Quarantine | Destroyed Fortress 50817 | -3/Quarantine | Found Prototype Reactor 50817 | -3/Quarantine | Identified Vortex Chain Reactor 50828 | -3/Quarantine | Found Prototype Device 50828 | -3/Quarantine | Identified Thermal Barrier 50836 | -3/Quarantine | Found Prototype Device 50836 | -3/Quarantine | Identified Exp. Force Field 50840 | -3/Quarantine | Found Prototype Device 50840 | -3/Quarantine | Identified Exp. EM Disruption Field 50972 | -3/Quarantine | Discovered new exit (range 6) 50978 | -3/Quarantine | Identified exit to Section 7 50980 | -3/Quarantine | Entered Section 7 51130 | -3/Section 7 | Found Alien Artifact 51130 | -3/Section 7 | Identified Spacefold Activator 51221 | -3/Section 7 | Destroyed 8 combat bots 51230 | -3/Section 7 | First assault squad dispatched 51325 | -3/Section 7 | Destroyed 14 combat bots 51536 | -3/Section 7 | Warped through subspace 51603 | -3/Section 7 | Discovered new exit (range 7) 51611 | -3/Section 7 | Identified exit to Research 51663 | -3/Section 7 | Garrison activated, responded to threat 51779 | -3/Section 7 | Garrison activated, responded to threat 51851 | -3/Section 7 | Entered Research 51851 | -2/Research | Evolved 2 slots: Propulsion x1, Weapon x1 52032 | -2/Research | Identified exit to Access 52036 | -2/Research | Found Adv. Kinecellerator 52101 | -2/Research | First assault squad dispatched 52628 | -2/Research | Discovered new exit (range 10) 52657 | -2/Research | Identified exit to Testing 52666 | -2/Research | Entered Testing 52701 | -2/Testing | Spotted Alpha 7 52735 | -2/Testing | Destroyed Alpha 7 52765 | -2/Testing | Rewired MH-OMR(K) 52934 | -2/Testing | Found Prototype Protection 52934 | -2/Testing | Identified Hvy. Regenerative Plating 52973 | -2/Testing | Spotted Striker 53224 | -2/Testing | Discovered exit to Access (range 15) 53295 | -2/Testing | Spotted PL-60BPMJE1TJ 53313 | -2/Testing | Rewired PL-60BPMJE1TJ 53451 | -2/Testing | First assault squad dispatched 53472 | -2/Testing | Repaired Broken Adv. KE Penetrator 53549 | -2/Testing | Spotted PL-NS7XCWUMMM 53560 | -2/Testing | Destroyed PL-NS7XCWUMMM 53744 | -2/Testing | Repaired Adv. KE Penetrator 54185 | -2/Testing | Found Prototype Device 54185 | -2/Testing | Identified AEGIS Remote Shield 54456 | -2/Testing | Entered Access 54456 | -1/Access | Evolved 2 slots: Utility x2 54495 | -1/Access | Spotted B-99 Colossus 54516 | -1/Access | Destroyed B-99 Colossus 54538 | -1/Access | Found Prototype Ballistic Gun 54542 | -1/Access | Found Prototype Ballistic Gun 54548 | -1/Access | Garrison activated, responded to threat 54601 | -1/Access | Identified Multirail (x2) 54918 | -1/Access | Energy Cycler disabled 55241 | -1/Access | First assault squad dispatched 55272 | -1/Access | Destroyed 42 combat bots 55334 | -1/Access | High security lockdown imminent 55358 | -1/Access | Destroyed 10 combat bots 55362 | -1/Access | Lost 3 parts (2p1u) 55414 | -1/Access | High security lockdown engaged 55542 | -1/Access | Used Subatomic Replicator to replicate Multirail 55548 | -1/Access | Destroyed 14 combat bots 55552 | -1/Access | Lost 4 parts (1n2u1w) 55610 | -1/Access | Spotted Executioner 55611 | -1/Access | System corruption reached 10% 55614 | -1/Access | Destroyed Executioner 55643 | -1/Access | Spotted Striker 55647 | -1/Access | Destroyed Striker 55653 | -1/Access | Destroyed Striker 55677 | -1/Access | Destroyed 17 combat bots 55683 | -1/Access | Lost 4 parts (1p3u) 55692 | -1/Access | Spotted Investigator 55708 | -1/Access | Destroyed Investigator 55779 | -1/Access | Lost 3 parts (1p2u) 55804 | -1/Access | Spotted Executioner 55804 | -1/Access | Spotted Striker 55804 | -1/Access | Spotted Executioner 55808 | -1/Access | Spotted B-99 Colossus 55827 | -1/Access | Core integrity fell below 50% 55885 | -1/Access | Lost 3 parts (2n1u) 55952 | -1/Access | Core integrity fell below 20% 55986 | -1/Access | Destroyed by Y-72 Warden with Railgun Last Messages --------------- 55951_ L-61 Swordsman unfolds itself. 55951_ B-74 Champion unfolds itself. 55951_ E-15 Imp unfolds itself. 55953_ System corrupted: Matter fused (-8). 55953_ K-01 Serf cleans the Repair Station. 55954_ Centrium Heavy Treads destroyed. 55954_ Slammed into S-43 Plague. 55960_ Slug penetrates Wall. 55963_ Arm. Medium Treads blown off. 55963_ Exp. Targeting Computer blown off. 55963_ Spacefold Activator blown off. 55963_ E-15 Imp destroyed. 55963_ Acquired Arm. Medium Treads. 55968_ System corrupted: Matter fused (-10). 55979_ Arm. Medium Treads destroyed. 55982_ Penetrated by Slug. 55982_ Critical hit (Destroy). 55982_ Arm. Medium Treads destroyed. 55983_ Penetrated by Slug. 55986_ ZJ#TFH6P&N8ESTUD9&W= 0